Workbook

Sheet 表紙
A14: 2025年後期
A15: 新聞折込広告紙数表

Sheet 取扱基準
A2: 新聞折込広告取扱基準
A5: 当社は日本新聞協会の「折込広告の取扱基準」および、新聞社の「広告掲載基準」を参考として、折込広告取扱基準を設けております。
A7: つぎのような折込チラシはお引き受けできかねます。
A10: （1） 広告の内容がはっきりしないもの。および、広告主の所在地、事業所名、ＨＰアドレス等のいずれの記載もなく、広告責任者が明確でないもの。
A12: （2） 虚偽または誇大表現により、誤認されるおそれのあるもの。「日本一」「業界一」等の最高・最大級の表現、「絶対に」「確実に」等、商品の性能、
A14: 効能、効果を保証する断定的表現を用いたもの。
A16: （3） 景表法（不当景品付販売・不当表示の禁止）、不正競争防止法（コピー商品等の販売宣伝の禁止）などのほか、薬事法、医療法など法律や条例に
A18: 触れると思われるもの。（医薬品等を否定する内容や迷信に類する非科学的な内容のもの等）
A20: （4） 広告主の主観的意見、意図、表現がみられ、他者を誹謗中傷し、結果的に他者の名誉、信用を傷つけるおそれがある表現のもの。（誹謗中傷広告等）
A22: （5）「新聞業における公正競争規約」に触れる抽選券・金券などを刷り込んだもの、クーポン付き広告に関する規則、運営細則に違反するもの。
A24: （6） 政治問題や係争中（もしくは係争が予想される）問題について、一方的な主張を述べたものや、立候補が予定されている人物の名称を記載するなど、
A26: 選挙の事前運動と推量されるもの。
A28: （7） 煽情的な言葉や、写真、イラスト等を用いた表現で、暴力・犯罪を肯定・礼讃するなど、公序良俗に反する表現のもの。
A30: （8） 不動産広告で、広告主の名称、所在地、販売物件の所在地、地目、建築の可否、建ぺい率、交通アクセス、価格、管理費、維持費、販売条件、
A32: 宅建業法による免許証番号などが明確に記載されてないもの。
A34: （9） 貸金業広告で、貸金業規制法で定められている必要事項が表示されていないもの。 （商号、名称、氏名、登録番号、住所、利率等）
A36: （10）発行本社の新聞と混同、誤認されると思われるものや、他紙の社名、題字、記事、催事などが掲載、引用されているもの。
A38: その他、著作権・肖像権・商標権等を侵害するおそれのあるもの。
A40: （11）新聞社がそれぞれ定めた広告掲載基準に照らして、新聞折込が不適当と認められるもの。
A42: （12）新聞販売店の営業活動に支障をきたし、不利益になると判断されるもの。
A46: ■ 上記に限らず、判断がむずかしいものは、新聞発行本社、関係諸機関の指導・協議によって決めさせていただきます。
A48: なお、ご不明な点がございましたら当社へご相談下さい。

Sheet 災害時注意事項
A2: 大規模災害発生時における新聞折込広告の取り扱いについて
B5: 大規模な災害（大地震、津波、洪水、豪雪、大火災、大規模停電、火山噴火、原子力発電所の事故、新型感染症の大流行、他国からの攻撃など）に見舞われた
B7: 場合、中日新聞折込広告協同組合加盟の折込会社と中日新聞販売店は被災の状況を的確に判断し、折込広告をご愛読者へお届けするために全力を傾注します。
B9: しかしながらライフラインや通信網、輸送ルートなどが遮断され、被災地の新聞販売店や従業員に甚大な被害が及んだ場合は、クライアント様のご要望にお応
B11: えできない場合もあります。
B13: この様に事前の予測と回避が不可能な事態が発生し、折込会社と新聞販売店の努力にも関わらず指定日に新聞折込が出来なかった場合、折込会社と新聞販売店
B15: は一切の責任を負う事ができません。あらかじめご容赦いただきますようお願い申しあげます。
B24: 東海地震に関する「警戒宣言」発令時の折込広告の取り扱いについて
B26: 『大地震への警戒宣言や注意情報が発令された場合、新聞折込広告は中止になります』
B29: 愛知県、三重県の大部分の市町村と岐阜県中津川市は大規模地震対策措置法により、地震防災対策強化地域に指定されています。指定された地域で大規
B31: 模な地震の発生が予知されますと、内閣総理大臣から警戒宣言が発令されることになっています。また東海地震の前兆現象が高まると、気象庁から注意
B33: 情報が発表されます。
B35: 警戒宣言発令後は交通規制が始まり、指定地域内へ車両の進入が禁止されるほか、一般の道路も時速20㎞に速度制限されるため大渋滞の発生が予想され
B37: ます。
B39: このため東海地震の注意情報や警戒宣言の発令と同時に、お客様からお預かりした新聞折込広告の配送作業は「中止」させていただきます。配送中の車
B41: 両に対しては折込広告をお預かりした状態ですみやかに帰社するように指示しますが、交通事情と警察官の指示によって止むを得ず路上に駐車し避難し
B43: なければならない事も想定されます。
B45: すでに配送が完了した新聞折込広告も、新聞販売店での組み込み作業が「中止」になり新聞折込ができなくなります。幸い注意情報や警戒宣言が解除
B47: された場合も、混乱が解消するまでしばらくの間は新聞折込ができない場合もあります。
B49: 何卒ご理解とご了承をいただけますようお願いいたします。

Sheet 広告主様へのお願い
A2: 広告主様へのお願い
A4: 1. 配布明細の連絡について
A6: 折込先配布明細のご指示は、ＦＡＸまたはメールで必ずチラシの搬入期日以前にご連絡下さい。
A8: 折込広告は、発送配布の都合上、50枚を単位として扱います。
A10: 配布指定部数と実際の部数が異なるときは、当社において一部配布数の変更、隣接地区への配布など、調整を行わせて頂く場合があります。
A12: 配布明細連絡をいただく際、正確なサイズをご指示願います。
A14: ※ 特に普通紙と厚紙の紙区別は注意して下さい。（四六版 110㎏より厚紙扱いとなります）
A16: ※ 新聞に収まる形状が原則ですが、例えばＢ４二ツ折の場合は二ツ折（Ｂ３）単価の適用となります。
B18: 合売記号の見方
B21: C…中日 N…日経 A…朝日 M…毎日 Y…読売 G…岐阜 I…伊勢 S…産経
B24: 合売店については、取扱い部数が多い媒体の欄に記載となります。
B26: ☆…月曜日折込不可
B28: △…折込日が休刊日翌日の場合、先送り地区
A31: 2. 折込広告の搬入時間について
A33: ※ 折込日2日前ＡＭ10時（日・祝日除く）までに搬入して下さい。但し下記地区は3日前ＡＭ10時（日・祝日除く）までに搬入して下さい。
A35: 田原市、新城市（設楽地区）、北設楽郡、三重県南勢地区
A37: （上記以外の場合は随時お問い合わせ下さい。）
A39: ※ 搬入時間を外れた持込みおよび、配布明細の事前連絡のない場合、折込指定日の責は負いかねます。
A41: ※ 折込広告の各新聞店への発送後の中止、変更等は出来かねます。
A43: ※ 年末年始、ゴールデンウィーク、お盆期間等については変則となります。
A46: 3. 行政区表示について
A48: 紙数表は実際の行政区と異なる地区もあります。資料は参考として掲載してありますので行政区へ指定・限定とした場合、
A50: 一部区域が入らない時と指定以外の地区に入ったりする場合が生じますので事前に当社までご相談下さい。

Sheet 広告主様へのお願い (2)
A2: 4. 月曜日および新聞休刊日の翌日は、一部地域において、折込できないところがあります。（下記一覧表参照）
A4: また選挙の開票報道等の都合で、新聞が遅れるときは、折込できません。
A6: ※下記の地区または販売店は地域事情などにより折込の条件が異なります。ご注意ください。
B8: ①月曜日折込不可
B10: 該当販売店
B11: 岐阜県郡上市：正ヶ洞 岐阜県高山市：国府
B14: ②休刊日翌日折込が先送りとなる地区
B16: 該当地区
B17: 愛知県新城市（設楽地区） 北設楽郡
A20: 5. パンフレット・小冊子に類するもの等は、その形状・内容により判断させて頂きます。
A23: 6. 二つ以上の事業所が連合（連名）して行う広告は、連合広告となり、一部地区で料金が異なったり、取り扱い不可となる場合があります。
A25: 必ず事前にご相談下さい。内容により判断させて頂きます。
A28: 〈適用外〉
A30: ・実在する商店街、夏祭り等実行委員会、テナント、ショッピングモール等。
A32: ・パチンコ・映画館・サウナなど、同じ敷地にある複合施設。
A34: ・オーナーが同一の企業グループ広告。
A36: ・複数企業が業務提携や同一テーマに基づき共同制作したコラボレーション広告。
A38: （但し、連絡先などの記載は広告責任者1社に限る。）
A40: ・雑誌・情報誌が、自誌ＰＲを目的に実際の誌面を使用再構成した広告。
A42: ・落成広告（企業名を掲載する企業が協賛企業であり、営利目的でないこと）
A45: 7. 折込広告の在庫管理に関して
A47: 次回以降の折込広告も同時に持ち込まれるお客様に対しましては、弊社配送センターにて
A49: 預かりを承りますが、保管期間は原則１ヶ月とさせて頂きます。
A52: 8. 全国取り次ぎを行っております。ご用の際はご相談下さい。

Sheet 岐阜県
A1: 折込日 | F1: 広告主 | O1: サイズ | S1: 取次店
F2: チラシ銘柄 | O2: 部数 | P2: =S34 -> 0
A3: 岐阜県 | U3: 2025年後期（11月1日以降）
A4: 地区 | B4: 中日新聞 | E4: 朝日新聞 | H4: 毎日新聞 | K4: 読売新聞 | N4: 岐阜新聞 | Q4: 合 計 | T4: 備考
A5: 岐阜市 | B5: =VALUE(TRIM(LEFT(岐阜市!E48,2))) -> 31 | C5: =岐阜市!F48 -> 44100 | D5: =岐阜市!G48 -> 0 | E5: =VALUE(TRIM(LEFT(岐阜市!I48,2))) -> 0 | F5: =岐阜市!J48 -> 0 | G5: =岐阜市!K48 -> 0 | H5: =VALUE(TRIM(LEFT(岐阜市!M48,2))) -> 0 | I5: =岐阜市!N48 -> 0 | J5: =岐阜市!O48 -> 0 | K5: =VALUE(TRIM(LEFT(岐阜市!Q48,2))) -> 8 | L5: =岐阜市!R48 -> 4450 | M5: =岐阜市!S48 -> 0 | N5: =VALUE(TRIM(LEFT(岐阜市!U48,2))) -> 30 | O5: =岐阜市!V48 -> 59700 | P5: =岐阜市!W48 -> 0 | Q5: =SUM(B5,E5,H5,K5,N5) -> 69 | R5: =SUM(C5,F5,I5,L5,O5) -> 108250 | S5: =IFERROR((SUM(D5,G5,J5,M5,P5))," ") -> 0
A6: 瑞穂市 | B6: =VALUE(TRIM(LEFT(瑞穂市・本巣市・本巣郡・山県市!E14,2))) -> 3 | C6: =瑞穂市・本巣市・本巣郡・山県市!F14 -> 5750 | D6: =瑞穂市・本巣市・本巣郡・山県市!G14 -> 0 | E6: =VALUE(TRIM(LEFT(瑞穂市・本巣市・本巣郡・山県市!I14,2))) -> 0 | F6: =瑞穂市・本巣市・本巣郡・山県市!J14 -> 0 | G6: =瑞穂市・本巣市・本巣郡・山県市!K14 -> 0 | H6: =VALUE(TRIM(LEFT(瑞穂市・本巣市・本巣郡・山県市!M14,2))) -> 0 | I6: =瑞穂市・本巣市・本巣郡・山県市!N14 -> 0 | J6: =瑞穂市・本巣市・本巣郡・山県市!O14 -> 0 | K6: =VALUE(TRIM(LEFT(瑞穂市・本巣市・本巣郡・山県市!Q14,2))) -> 1 | L6: =瑞穂市・本巣市・本巣郡・山県市!R14 -> 400 | M6: =瑞穂市・本巣市・本巣郡・山県市!S14 -> 0 | N6: =VALUE(TRIM(LEFT(瑞穂市・本巣市・本巣郡・山県市!U14,2))) -> 2 | O6: =瑞穂市・本巣市・本巣郡・山県市!V14 -> 4950 | P6: =瑞穂市・本巣市・本巣郡・山県市!W14 -> 0 | Q6: 6 | R6: 11100 | S6: 0
A7: 本巣市 | B7: =VALUE(TRIM(LEFT(瑞穂市・本巣市・本巣郡・山県市!E27,2))) -> 1 | C7: =瑞穂市・本巣市・本巣郡・山県市!F27 -> 1950 | D7: =瑞穂市・本巣市・本巣郡・山県市!G27 -> 0 | E7: =VALUE(TRIM(LEFT(瑞穂市・本巣市・本巣郡・山県市!I27,2))) -> 0 | F7: =瑞穂市・本巣市・本巣郡・山県市!J27 -> 0 | G7: =瑞穂市・本巣市・本巣郡・山県市!K27 -> 0 | H7: =VALUE(TRIM(LEFT(瑞穂市・本巣市・本巣郡・山県市!M27,2))) -> 0 | I7: =瑞穂市・本巣市・本巣郡・山県市!N27 -> 0 | J7: =瑞穂市・本巣市・本巣郡・山県市!O27 -> 0 | K7: =VALUE(TRIM(LEFT(瑞穂市・本巣市・本巣郡・山県市!Q27,2))) -> 0 | L7: =瑞穂市・本巣市・本巣郡・山県市!R27 -> 0 | M7: =瑞穂市・本巣市・本巣郡・山県市!S27 -> 0 | N7: =VALUE(TRIM(LEFT(瑞穂市・本巣市・本巣郡・山県市!U27,2))) -> 4 | O7: =瑞穂市・本巣市・本巣郡・山県市!V27 -> 5650 | P7: =瑞穂市・本巣市・本巣郡・山県市!W27 -> 0 | Q7: 5 | R7: 7600 | S7: 0
A8: 本巣郡 | B8: =VALUE(TRIM(LEFT(瑞穂市・本巣市・本巣郡・山県市!E37,2))) -> 2 | C8: =瑞穂市・本巣市・本巣郡・山県市!F37 -> 2750 | D8: =瑞穂市・本巣市・本巣郡・山県市!G37 -> 0 | E8: =VALUE(TRIM(LEFT(瑞穂市・本巣市・本巣郡・山県市!I37,2))) -> 0 | F8: =瑞穂市・本巣市・本巣郡・山県市!J37 -> 0 | G8: =瑞穂市・本巣市・本巣郡・山県市!K37 -> 0 | H8: =VALUE(TRIM(LEFT(瑞穂市・本巣市・本巣郡・山県市!M37,2))) -> 0 | I8: =瑞穂市・本巣市・本巣郡・山県市!N37 -> 0 | J8: =瑞穂市・本巣市・本巣郡・山県市!O37 -> 0 | K8: =VALUE(TRIM(LEFT(瑞穂市・本巣市・本巣郡・山県市!Q37,2))) -> 1 | L8: =瑞穂市・本巣市・本巣郡・山県市!R37 -> 400 | M8: =瑞穂市・本巣市・本巣郡・山県市!S37 -> 0 | N8: =VALUE(TRIM(LEFT(瑞穂市・本巣市・本巣郡・山県市!U37,2))) -> 0 | O8: =瑞穂市・本巣市・本巣郡・山県市!V37 -> 0 | P8: =瑞穂市・本巣市・本巣郡・山県市!W37 -> 0 | Q8: 3 | R8: 3150 | S8: 0
A9: 山県市 | B9: =VALUE(TRIM(LEFT(瑞穂市・本巣市・本巣郡・山県市!E48,2))) -> 2 | C9: =瑞穂市・本巣市・本巣郡・山県市!F48 -> 3850 | D9: =瑞穂市・本巣市・本巣郡・山県市!G48 -> 0 | E9: =VALUE(TRIM(LEFT(瑞穂市・本巣市・本巣郡・山県市!I48,2))) -> 0 | F9: =瑞穂市・本巣市・本巣郡・山県市!J48 -> 0 | G9: =瑞穂市・本巣市・本巣郡・山県市!K48 -> 0 | H9: =VALUE(TRIM(LEFT(瑞穂市・本巣市・本巣郡・山県市!M48,2))) -> 0 | I9: =瑞穂市・本巣市・本巣郡・山県市!N48 -> 0 | J9: =瑞穂市・本巣市・本巣郡・山県市!O48 -> 0 | K9: =VALUE(TRIM(LEFT(瑞穂市・本巣市・本巣郡・山県市!Q48,2))) -> 1 | L9: =瑞穂市・本巣市・本巣郡・山県市!R48 -> 100 | M9: =瑞穂市・本巣市・本巣郡・山県市!S48 -> 0 | N9: =VALUE(TRIM(LEFT(瑞穂市・本巣市・本巣郡・山県市!U48,2))) -> 2 | O9: =瑞穂市・本巣市・本巣郡・山県市!V48 -> 3750 | P9: =瑞穂市・本巣市・本巣郡・山県市!W48 -> 0 | Q9: 5 | R9: 7700 | S9: 0
A10: 羽島市 | B10: =VALUE(TRIM(LEFT(羽島市・羽島郡!E26,2))) -> 6 | C10: =羽島市・羽島郡!F26 -> 8650 | D10: =羽島市・羽島郡!G26 -> 0 | E10: =VALUE(TRIM(LEFT(羽島市・羽島郡!I26,2))) -> 0 | F10: =羽島市・羽島郡!J26 -> 0 | G10: =羽島市・羽島郡!K26 -> 0 | H10: =VALUE(TRIM(LEFT(羽島市・羽島郡!M26,2))) -> 0 | I10: =羽島市・羽島郡!N26 -> 0 | J10: =羽島市・羽島郡!O26 -> 0 | K10: =VALUE(TRIM(LEFT(羽島市・羽島郡!Q26,2))) -> 1 | L10: =羽島市・羽島郡!R26 -> 550 | M10: =羽島市・羽島郡!S26 -> 0 | N10: =VALUE(TRIM(LEFT(羽島市・羽島郡!U26,2))) -> 3 | O10: =羽島市・羽島郡!V26 -> 4650 | P10: =羽島市・羽島郡!W26 -> 0 | Q10: 10 | R10: 13850 | S10: 0
A11: 羽島郡 | B11: =VALUE(TRIM(LEFT(羽島市・羽島郡!E48,2))) -> 3 | C11: =羽島市・羽島郡!F48 -> 4800 | D11: =羽島市・羽島郡!G48 -> 0 | E11: =VALUE(TRIM(LEFT(羽島市・羽島郡!I48,2))) -> 0 | F11: =羽島市・羽島郡!J48 -> 0 | G11: =羽島市・羽島郡!K48 -> 0 | H11: =VALUE(TRIM(LEFT(羽島市・羽島郡!M48,2))) -> 0 | I11: =羽島市・羽島郡!N48 -> 0 | J11: =羽島市・羽島郡!O48 -> 0 | K11: =VALUE(TRIM(LEFT(羽島市・羽島郡!Q48,2))) -> 1 | L11: =羽島市・羽島郡!R48 -> 850 | M11: =羽島市・羽島郡!S48 -> 0 | N11: =VALUE(TRIM(LEFT(羽島市・羽島郡!U48,2))) -> 1 | O11: =羽島市・羽島郡!V48 -> 1600 | P11: =羽島市・羽島郡!W48 -> 0 | Q11: 5 | R11: 7250 | S11: 0
A12: 各務原市 | B12: =VALUE(TRIM(LEFT(各務原市!E48,2))) -> 11 | C12: =各務原市!F48 -> 18850 | D12: =各務原市!G48 -> 0 | E12: =VALUE(TRIM(LEFT(各務原市!I48,2))) -> 0 | F12: =各務原市!J48 -> 0 | G12: =各務原市!K48 -> 0 | H12: =VALUE(TRIM(LEFT(各務原市!M48,2))) -> 2 | I12: =各務原市!N48 -> 600 | J12: =各務原市!O48 -> 0 | K12: =VALUE(TRIM(LEFT(各務原市!Q48,2))) -> 3 | L12: =各務原市!R48 -> 1000 | M12: =各務原市!S48 -> 0 | N12: =VALUE(TRIM(LEFT(各務原市!U48,2))) -> 6 | O12: =各務原市!V48 -> 11400 | P12: =各務原市!W48 -> 0 | Q12: 22 | R12: 31850 | S12: 0
A13: 大垣市 | B13: =VALUE(TRIM(LEFT(大垣市・海津市・揖斐郡!E22,2))) -> 10 | C13: =大垣市・海津市・揖斐郡!F22 -> 24150 | D13: =大垣市・海津市・揖斐郡!G22 -> 0 | E13: =VALUE(TRIM(LEFT(大垣市・海津市・揖斐郡!I22,2))) -> 1 | F13: =大垣市・海津市・揖斐郡!J22 -> 1000 | G13: =大垣市・海津市・揖斐郡!K22 -> 0 | H13: =VALUE(TRIM(LEFT(大垣市・海津市・揖斐郡!M22,2))) -> 0 | I13: =大垣市・海津市・揖斐郡!N22 -> 0 | J13: =大垣市・海津市・揖斐郡!O22 -> 0 | K13: =VALUE(TRIM(LEFT(大垣市・海津市・揖斐郡!Q22,2))) -> 3 | L13: =大垣市・海津市・揖斐郡!R22 -> 1550 | M13: =大垣市・海津市・揖斐郡!S22 -> 0 | N13: =VALUE(TRIM(LEFT(大垣市・海津市・揖斐郡!U22,2))) -> 5 | O13: =大垣市・海津市・揖斐郡!V22 -> 9400 | P13: =大垣市・海津市・揖斐郡!W22 -> 0 | Q13: 19 | R13: 36100 | S13: 0
A14: 海津市 | B14: =VALUE(TRIM(LEFT(大垣市・海津市・揖斐郡!E36,2))) -> 4 | C14: =大垣市・海津市・揖斐郡!F36 -> 6200 | D14: =大垣市・海津市・揖斐郡!G36 -> 0 | E14: =VALUE(TRIM(LEFT(大垣市・海津市・揖斐郡!I36,2))) -> 0 | F14: =大垣市・海津市・揖斐郡!J36 -> 0 | G14: =大垣市・海津市・揖斐郡!K36 -> 0 | H14: =VALUE(TRIM(LEFT(大垣市・海津市・揖斐郡!M36,2))) -> 0 | I14: =大垣市・海津市・揖斐郡!N36 -> 0 | J14: =大垣市・海津市・揖斐郡!O36 -> 0 | K14: =VALUE(TRIM(LEFT(大垣市・海津市・揖斐郡!Q36,2))) -> 1 | L14: =大垣市・海津市・揖斐郡!R36 -> 350 | M14: =大垣市・海津市・揖斐郡!S36 -> 0 | N14: =VALUE(TRIM(LEFT(大垣市・海津市・揖斐郡!U36,2))) -> 1 | O14: =大垣市・海津市・揖斐郡!V36 -> 650 | P14: =大垣市・海津市・揖斐郡!W36 -> 0 | Q14: 6 | R14: 7200 | S14: 0
A15: 揖斐郡 | B15: =VALUE(TRIM(LEFT(大垣市・海津市・揖斐郡!E48,2))) -> 3 | C15: =大垣市・海津市・揖斐郡!F48 -> 9350 | D15: =大垣市・海津市・揖斐郡!G48 -> 0 | E15: =VALUE(TRIM(LEFT(大垣市・海津市・揖斐郡!I48,2))) -> 0 | F15: =大垣市・海津市・揖斐郡!J48 -> 0 | G15: =大垣市・海津市・揖斐郡!K48 -> 0 | H15: =VALUE(TRIM(LEFT(大垣市・海津市・揖斐郡!M48,2))) -> 0 | I15: =大垣市・海津市・揖斐郡!N48 -> 0 | J15: =大垣市・海津市・揖斐郡!O48 -> 0 | K15: =VALUE(TRIM(LEFT(大垣市・海津市・揖斐郡!Q48,2))) -> 2 | L15: =大垣市・海津市・揖斐郡!R48 -> 400 | M15: =大垣市・海津市・揖斐郡!S48 -> 0 | N15: =VALUE(TRIM(LEFT(大垣市・海津市・揖斐郡!U48,2))) -> 3 | O15: =大垣市・海津市・揖斐郡!V48 -> 4300 | P15: =大垣市・海津市・揖斐郡!W48 -> 0 | Q15: 8 | R15: 14050 | S15: 0
A16: 不破郡 | B16: =VALUE(TRIM(LEFT(不破郡・安八郡・養老郡!E14,2))) -> 3 | C16: =不破郡・安八郡・養老郡!F14 -> 5550 | D16: =不破郡・安八郡・養老郡!G14 -> 0 | E16: =VALUE(TRIM(LEFT(不破郡・安八郡・養老郡!I14,2))) -> 0 | F16: =不破郡・安八郡・養老郡!J14 -> 0 | G16: =不破郡・安八郡・養老郡!K14 -> 0 | H16: =VALUE(TRIM(LEFT(不破郡・安八郡・養老郡!M14,2))) -> 0 | I16: =不破郡・安八郡・養老郡!N14 -> 0 | J16: =不破郡・安八郡・養老郡!O14 -> 0 | K16: =VALUE(TRIM(LEFT(不破郡・安八郡・養老郡!Q14,2))) -> 1 | L16: =不破郡・安八郡・養老郡!R14 -> 250 | M16: =不破郡・安八郡・養老郡!S14 -> 0 | N16: =VALUE(TRIM(LEFT(不破郡・安八郡・養老郡!U14,2))) -> 1 | O16: =不破郡・安八郡・養老郡!V14 -> 2650 | P16: =不破郡・安八郡・養老郡!W14 -> 0 | Q16: 5 | R16: 8450 | S16: 0
A17: 安八郡 | B17: =VALUE(TRIM(LEFT(不破郡・安八郡・養老郡!E31,2))) -> 3 | C17: =不破郡・安八郡・養老郡!F31 -> 8000 | D17: =不破郡・安八郡・養老郡!G31 -> 0 | E17: =VALUE(TRIM(LEFT(不破郡・安八郡・養老郡!I31,2))) -> 0 | F17: =不破郡・安八郡・養老郡!J31 -> 0 | G17: =不破郡・安八郡・養老郡!K31 -> 0 | H17: =VALUE(TRIM(LEFT(不破郡・安八郡・養老郡!M31,2))) -> 0 | I17: =不破郡・安八郡・養老郡!N31 -> 0 | J17: =不破郡・安八郡・養老郡!O31 -> 0 | K17: =VALUE(TRIM(LEFT(不破郡・安八郡・養老郡!Q31,2))) -> 2 | L17: =不破郡・安八郡・養老郡!R31 -> 200 | M17: =不破郡・安八郡・養老郡!S31 -> 0 | N17: =VALUE(TRIM(LEFT(不破郡・安八郡・養老郡!U31,2))) -> 0 | O17: =不破郡・安八郡・養老郡!V31 -> 0 | P17: =不破郡・安八郡・養老郡!W31 -> 0 | Q17: 5 | R17: 8200 | S17: 0
A18: 養老郡 | B18: =VALUE(TRIM(LEFT(不破郡・安八郡・養老郡!E48,2))) -> 2 | C18: =不破郡・安八郡・養老郡!F48 -> 3950 | D18: =不破郡・安八郡・養老郡!G48 -> 0 | E18: =VALUE(TRIM(LEFT(不破郡・安八郡・養老郡!I48,2))) -> 0 | F18: =不破郡・安八郡・養老郡!J48 -> 0 | G18: =不破郡・安八郡・養老郡!K48 -> 0 | H18: =VALUE(TRIM(LEFT(不破郡・安八郡・養老郡!M48,2))) -> 0 | I18: =不破郡・安八郡・養老郡!N48 -> 0 | J18: =不破郡・安八郡・養老郡!O48 -> 0 | K18: =VALUE(TRIM(LEFT(不破郡・安八郡・養老郡!Q48,2))) -> 0 | L18: =不破郡・安八郡・養老郡!R48 -> 0 | M18: =不破郡・安八郡・養老郡!S48 -> 0 | N18: =VALUE(TRIM(LEFT(不破郡・安八郡・養老郡!U48,2))) -> 2 | O18: =不破郡・安八郡・養老郡!V48 -> 2550 | P18: =不破郡・安八郡・養老郡!W48 -> 0 | Q18: 4 | R18: 6500 | S18: 0
A19: 美濃加茂市 | B19: =VALUE(TRIM(LEFT(美濃加茂市・加茂郡!E21,2))) -> 3 | C19: =美濃加茂市・加茂郡!F21 -> 7600 | D19: =美濃加茂市・加茂郡!G21 -> 0 | E19: =VALUE(TRIM(LEFT(美濃加茂市・加茂郡!I21,2))) -> 0 | F19: =美濃加茂市・加茂郡!J21 -> 0 | G19: =美濃加茂市・加茂郡!K21 -> 0 | H19: =VALUE(TRIM(LEFT(美濃加茂市・加茂郡!M21,2))) -> 0 | I19: =美濃加茂市・加茂郡!N21 -> 0 | J19: =美濃加茂市・加茂郡!O21 -> 0 | K19: =VALUE(TRIM(LEFT(美濃加茂市・加茂郡!Q21,2))) -> 1 | L19: =美濃加茂市・加茂郡!R21 -> 800 | M19: =美濃加茂市・加茂郡!S21 -> 0 | N19: =VALUE(TRIM(LEFT(美濃加茂市・加茂郡!U21,2))) -> 1 | O19: =美濃加茂市・加茂郡!V21 -> 1650 | P19: =美濃加茂市・加茂郡!W21 -> 0 | Q19: 5 | R19: 10050 | S19: 0
A20: 加茂郡 | B20: =VALUE(TRIM(LEFT(美濃加茂市・加茂郡!E48,2))) -> 12 | C20: =美濃加茂市・加茂郡!F48 -> 11500 | D20: =美濃加茂市・加茂郡!G48 -> 0 | E20: =VALUE(TRIM(LEFT(美濃加茂市・加茂郡!I48,2))) -> 0 | F20: =美濃加茂市・加茂郡!J48 -> 0 | G20: =美濃加茂市・加茂郡!K48 -> 0 | H20: =VALUE(TRIM(LEFT(美濃加茂市・加茂郡!M48,2))) -> 0 | I20: =美濃加茂市・加茂郡!N48 -> 0 | J20: =美濃加茂市・加茂郡!O48 -> 0 | K20: =VALUE(TRIM(LEFT(美濃加茂市・加茂郡!Q48,2))) -> 1 | L20: =美濃加茂市・加茂郡!R48 -> 100 | M20: =美濃加茂市・加茂郡!S48 -> 0 | N20: =VALUE(TRIM(LEFT(美濃加茂市・加茂郡!U48,2))) -> 1 | O20: =美濃加茂市・加茂郡!V48 -> 550 | P20: =美濃加茂市・加茂郡!W48 -> 0 | Q20: 14 | R20: 12150 | S20: 0
A21: 美濃市 | B21: =VALUE(TRIM(LEFT(美濃市・関市・郡上市!E14,2))) -> 2 | C21: =美濃市・関市・郡上市!F14 -> 3550 | D21: =美濃市・関市・郡上市!G14 -> 0 | E21: =VALUE(TRIM(LEFT(美濃市・関市・郡上市!I14,2))) -> 0 | F21: =美濃市・関市・郡上市!J14 -> 0 | G21: =美濃市・関市・郡上市!K14 -> 0 | H21: =VALUE(TRIM(LEFT(美濃市・関市・郡上市!M14,2))) -> 0 | I21: =美濃市・関市・郡上市!N14 -> 0 | J21: =美濃市・関市・郡上市!O14 -> 0 | K21: =VALUE(TRIM(LEFT(美濃市・関市・郡上市!Q14,2))) -> 0 | L21: =美濃市・関市・郡上市!R14 -> 0 | M21: =美濃市・関市・郡上市!S14 -> 0 | N21: =VALUE(TRIM(LEFT(美濃市・関市・郡上市!U14,2))) -> 1 | O21: =美濃市・関市・郡上市!V14 -> 700 | P21: =美濃市・関市・郡上市!W14 -> 0 | Q21: 3 | R21: 4250 | S21: 0
A22: 関市 | B22: =VALUE(TRIM(LEFT(美濃市・関市・郡上市!E31,2))) -> 7 | C22: =美濃市・関市・郡上市!F31 -> 10300 | D22: =美濃市・関市・郡上市!G31 -> 0 | E22: =VALUE(TRIM(LEFT(美濃市・関市・郡上市!I31,2))) -> 0 | F22: =美濃市・関市・郡上市!J31 -> 0 | G22: =美濃市・関市・郡上市!K31 -> 0 | H22: =VALUE(TRIM(LEFT(美濃市・関市・郡上市!M31,2))) -> 0 | I22: =美濃市・関市・郡上市!N31 -> 0 | J22: =美濃市・関市・郡上市!O31 -> 0 | K22: =VALUE(TRIM(LEFT(美濃市・関市・郡上市!Q31,2))) -> 2 | L22: =美濃市・関市・郡上市!R31 -> 450 | M22: =美濃市・関市・郡上市!S31 -> 0 | N22: =VALUE(TRIM(LEFT(美濃市・関市・郡上市!U31,2))) -> 7 | O22: =美濃市・関市・郡上市!V31 -> 9750 | P22: =美濃市・関市・郡上市!W31 -> 0 | Q22: 16 | R22: 20500 | S22: 0
A23: 郡上市 | B23: =VALUE(TRIM(LEFT(美濃市・関市・郡上市!E48,2))) -> 7 | C23: =美濃市・関市・郡上市!F48 -> 8000 | D23: =美濃市・関市・郡上市!G48 -> 0 | E23: =VALUE(TRIM(LEFT(美濃市・関市・郡上市!I48,2))) -> 0 | F23: =美濃市・関市・郡上市!J48 -> 0 | G23: =美濃市・関市・郡上市!K48 -> 0 | H23: =VALUE(TRIM(LEFT(美濃市・関市・郡上市!M48,2))) -> 0 | I23: =美濃市・関市・郡上市!N48 -> 0 | J23: =美濃市・関市・郡上市!O48 -> 0 | K23: =VALUE(TRIM(LEFT(美濃市・関市・郡上市!Q48,2))) -> 1 | L23: =美濃市・関市・郡上市!R48 -> 50 | M23: =美濃市・関市・郡上市!S48 -> 0 | N23: =VALUE(TRIM(LEFT(美濃市・関市・郡上市!U48,2))) -> 1 | O23: =美濃市・関市・郡上市!V48 -> 1300 | P23: =美濃市・関市・郡上市!W48 -> 0 | Q23: 9 | R23: 9350 | S23: 0
A24: 可児市 | B24: =VALUE(TRIM(LEFT(可児市・可児郡・多治見市!E16,2))) -> 6 | C24: =可児市・可児郡・多治見市!F16 -> 14200 | D24: =可児市・可児郡・多治見市!G16 -> 0 | E24: =VALUE(TRIM(LEFT(可児市・可児郡・多治見市!I16,2))) -> 4 | F24: =可児市・可児郡・多治見市!J16 -> 3400 | G24: =可児市・可児郡・多治見市!K16 -> 0 | H24: =VALUE(TRIM(LEFT(可児市・可児郡・多治見市!M16,2))) -> 0 | I24: =可児市・可児郡・多治見市!N16 -> 0 | J24: =可児市・可児郡・多治見市!O16 -> 0 | K24: =VALUE(TRIM(LEFT(可児市・可児郡・多治見市!Q16,2))) -> 2 | L24: =可児市・可児郡・多治見市!R16 -> 1350 | M24: =可児市・可児郡・多治見市!S16 -> 0 | N24: =VALUE(TRIM(LEFT(可児市・可児郡・多治見市!U16,2))) -> 1 | O24: =可児市・可児郡・多治見市!V16 -> 200 | P24: =可児市・可児郡・多治見市!W16 -> 0 | Q24: 13 | R24: 19150 | S24: 0
A25: 可児郡 | B25: =VALUE(TRIM(LEFT(可児市・可児郡・多治見市!E26,2))) -> 1 | C25: =可児市・可児郡・多治見市!F26 -> 2250 | D25: =可児市・可児郡・多治見市!G26 -> 0 | E25: =VALUE(TRIM(LEFT(可児市・可児郡・多治見市!I26,2))) -> 0 | F25: =可児市・可児郡・多治見市!J26 -> 0 | G25: =可児市・可児郡・多治見市!K26 -> 0 | H25: =VALUE(TRIM(LEFT(可児市・可児郡・多治見市!M26,2))) -> 0 | I25: =可児市・可児郡・多治見市!N26 -> 0 | J25: =可児市・可児郡・多治見市!O26 -> 0 | K25: =VALUE(TRIM(LEFT(可児市・可児郡・多治見市!Q26,2))) -> 0 | L25: =可児市・可児郡・多治見市!R26 -> 0 | M25: =可児市・可児郡・多治見市!S26 -> 0 | N25: =VALUE(TRIM(LEFT(可児市・可児郡・多治見市!U26,2))) -> 0 | O25: =可児市・可児郡・多治見市!V26 -> 0 | P25: =可児市・可児郡・多治見市!W26 -> 0 | Q25: 1 | R25: 2250 | S25: 0
A26: 多治見市 | B26: =VALUE(TRIM(LEFT(可児市・可児郡・多治見市!E48,2))) -> 10 | C26: =可児市・可児郡・多治見市!F48 -> 21400 | D26: =可児市・可児郡・多治見市!G48 -> 0 | E26: =VALUE(TRIM(LEFT(可児市・可児郡・多治見市!I48,2))) -> 3 | F26: =可児市・可児郡・多治見市!J48 -> 3000 | G26: =可児市・可児郡・多治見市!K48 -> 0 | H26: =VALUE(TRIM(LEFT(可児市・可児郡・多治見市!M48,2))) -> 0 | I26: =可児市・可児郡・多治見市!N48 -> 0 | J26: =可児市・可児郡・多治見市!O48 -> 0 | K26: =VALUE(TRIM(LEFT(可児市・可児郡・多治見市!Q48,2))) -> 2 | L26: =可児市・可児郡・多治見市!R48 -> 1450 | M26: =可児市・可児郡・多治見市!S48 -> 0 | N26: =VALUE(TRIM(LEFT(可児市・可児郡・多治見市!U48,2))) -> 0 | O26: =可児市・可児郡・多治見市!V48 -> 0 | P26: =可児市・可児郡・多治見市!W48 -> 0 | Q26: 15 | R26: 25850 | S26: 0
A27: 土岐市 | B27: =VALUE(TRIM(LEFT(土岐市・瑞浪市・恵那市!E14,2))) -> 5 | C27: =土岐市・瑞浪市・恵那市!F14 -> 9850 | D27: =土岐市・瑞浪市・恵那市!G14 -> 0 | E27: =VALUE(TRIM(LEFT(土岐市・瑞浪市・恵那市!I14,2))) -> 4 | F27: =土岐市・瑞浪市・恵那市!J14 -> 1750 | G27: =土岐市・瑞浪市・恵那市!K14 -> 0 | H27: =VALUE(TRIM(LEFT(土岐市・瑞浪市・恵那市!M14,2))) -> 0 | I27: =土岐市・瑞浪市・恵那市!N14 -> 0 | J27: =土岐市・瑞浪市・恵那市!O14 -> 0 | K27: =VALUE(TRIM(LEFT(土岐市・瑞浪市・恵那市!Q14,2))) -> 1 | L27: =土岐市・瑞浪市・恵那市!R14 -> 650 | M27: =土岐市・瑞浪市・恵那市!S14 -> 0 | N27: =VALUE(TRIM(LEFT(土岐市・瑞浪市・恵那市!U14,2))) -> 0 | O27: =土岐市・瑞浪市・恵那市!V14 -> 0 | P27: =土岐市・瑞浪市・恵那市!W14 -> 0 | Q27: 10 | R27: 12250 | S27: 0
A28: 瑞浪市 | B28: =VALUE(TRIM(LEFT(土岐市・瑞浪市・恵那市!E27,2))) -> 4 | C28: =土岐市・瑞浪市・恵那市!F27 -> 7450 | D28: =土岐市・瑞浪市・恵那市!G27 -> 0 | E28: =VALUE(TRIM(LEFT(土岐市・瑞浪市・恵那市!I27,2))) -> 0 | F28: =土岐市・瑞浪市・恵那市!J27 -> 0 | G28: =土岐市・瑞浪市・恵那市!K27 -> 0 | H28: =VALUE(TRIM(LEFT(土岐市・瑞浪市・恵那市!M27,2))) -> 0 | I28: =土岐市・瑞浪市・恵那市!N27 -> 0 | J28: =土岐市・瑞浪市・恵那市!O27 -> 0 | K28: =VALUE(TRIM(LEFT(土岐市・瑞浪市・恵那市!Q27,2))) -> 2 | L28: =土岐市・瑞浪市・恵那市!R27 -> 450 | M28: =土岐市・瑞浪市・恵那市!S27 -> 0 | N28: =VALUE(TRIM(LEFT(土岐市・瑞浪市・恵那市!U27,2))) -> 0 | O28: =土岐市・瑞浪市・恵那市!V27 -> 0 | P28: =土岐市・瑞浪市・恵那市!W27 -> 0 | Q28: 6 | R28: 7900 | S28: 0
A29: 恵那市 | B29: =VALUE(TRIM(LEFT(土岐市・瑞浪市・恵那市!E48,2))) -> 8 | C29: =土岐市・瑞浪市・恵那市!F48 -> 10050 | D29: =土岐市・瑞浪市・恵那市!G48 -> 0 | E29: =VALUE(TRIM(LEFT(土岐市・瑞浪市・恵那市!I48,2))) -> 1 | F29: =土岐市・瑞浪市・恵那市!J48 -> 1250 | G29: =土岐市・瑞浪市・恵那市!K48 -> 0 | H29: =VALUE(TRIM(LEFT(土岐市・瑞浪市・恵那市!M48,2))) -> 0 | I29: =土岐市・瑞浪市・恵那市!N48 -> 0 | J29: =土岐市・瑞浪市・恵那市!O48 -> 0 | K29: =VALUE(TRIM(LEFT(土岐市・瑞浪市・恵那市!Q48,2))) -> 1 | L29: =土岐市・瑞浪市・恵那市!R48 -> 500 | M29: =土岐市・瑞浪市・恵那市!S48 -> 0 | N29: =VALUE(TRIM(LEFT(土岐市・瑞浪市・恵那市!U48,2))) -> 2 | O29: =土岐市・瑞浪市・恵那市!V48 -> 500 | P29: =土岐市・瑞浪市・恵那市!W48 -> 0 | Q29: 12 | R29: 12300 | S29: 0
A30: 中津川市 | B30: =VALUE(TRIM(LEFT(中津川市・下呂市!E26,2))) -> 14 | C30: =中津川市・下呂市!F26 -> 16600 | D30: =中津川市・下呂市!G26 -> 0 | E30: =VALUE(TRIM(LEFT(中津川市・下呂市!I26,2))) -> 0 | F30: =中津川市・下呂市!J26 -> 0 | G30: =中津川市・下呂市!K26 -> 0 | H30: =VALUE(TRIM(LEFT(中津川市・下呂市!M26,2))) -> 0 | I30: =中津川市・下呂市!N26 -> 0 | J30: =中津川市・下呂市!O26 -> 0 | K30: =VALUE(TRIM(LEFT(中津川市・下呂市!Q26,2))) -> 1 | L30: =中津川市・下呂市!R26 -> 1200 | M30: =中津川市・下呂市!S26 -> 0 | N30: =VALUE(TRIM(LEFT(中津川市・下呂市!U26,2))) -> 0 | O30: =中津川市・下呂市!V26 -> 0 | P30: =中津川市・下呂市!W26 -> 0 | Q30: 15 | R30: 17800 | S30: 0
A31: 下呂市 | B31: =VALUE(TRIM(LEFT(中津川市・下呂市!E48,2))) -> 8 | C31: =中津川市・下呂市!F48 -> 8600 | D31: =中津川市・下呂市!G48 -> 0 | E31: =VALUE(TRIM(LEFT(中津川市・下呂市!I48,2))) -> 0 | F31: =中津川市・下呂市!J48 -> 0 | G31: =中津川市・下呂市!K48 -> 0 | H31: =VALUE(TRIM(LEFT(中津川市・下呂市!M48,2))) -> 0 | I31: =中津川市・下呂市!N48 -> 0 | J31: =中津川市・下呂市!O48 -> 0 | K31: =VALUE(TRIM(LEFT(中津川市・下呂市!Q48,2))) -> 2 | L31: =中津川市・下呂市!R48 -> 600 | M31: =中津川市・下呂市!S48 -> 0 | N31: =VALUE(TRIM(LEFT(中津川市・下呂市!U48,2))) -> 0 | O31: =中津川市・下呂市!V48 -> 0 | P31: =中津川市・下呂市!W48 -> 0 | Q31: 10 | R31: 9200 | S31: 0
A32: 高山市 | B32: =VALUE(TRIM(LEFT(高山市・飛騨市!E26,2))) -> 11 | C32: =高山市・飛騨市!F26 -> 17350 | D32: =高山市・飛騨市!G26 -> 0 | E32: =VALUE(TRIM(LEFT(高山市・飛騨市!I26,2))) -> 1 | F32: =高山市・飛騨市!J26 -> 800 | G32: =高山市・飛騨市!K26 -> 0 | H32: =VALUE(TRIM(LEFT(高山市・飛騨市!M26,2))) -> 0 | I32: =高山市・飛騨市!N26 -> 0 | J32: =高山市・飛騨市!O26 -> 0 | K32: =VALUE(TRIM(LEFT(高山市・飛騨市!Q26,2))) -> 1 | L32: =高山市・飛騨市!R26 -> 900 | M32: =高山市・飛騨市!S26 -> 0 | N32: =VALUE(TRIM(LEFT(高山市・飛騨市!U26,2))) -> 1 | O32: =高山市・飛騨市!V26 -> 1850 | P32: =高山市・飛騨市!W26 -> 0 | Q32: 14 | R32: 20900 | S32: 0
A33: 飛騨市 | B33: =VALUE(TRIM(LEFT(高山市・飛騨市!E48,2))) -> 7 | C33: =高山市・飛騨市!F48 -> 5550 | D33: =高山市・飛騨市!G48 -> 0 | E33: =VALUE(TRIM(LEFT(高山市・飛騨市!I48,2))) -> 0 | F33: =高山市・飛騨市!J48 -> 0 | G33: =高山市・飛騨市!K48 -> 0 | H33: =VALUE(TRIM(LEFT(高山市・飛騨市!M48,2))) -> 0 | I33: =高山市・飛騨市!N48 -> 0 | J33: =高山市・飛騨市!O48 -> 0 | K33: =VALUE(TRIM(LEFT(高山市・飛騨市!Q48,2))) -> 2 | L33: =高山市・飛騨市!R48 -> 150 | M33: =高山市・飛騨市!S48 -> 0 | N33: =VALUE(TRIM(LEFT(高山市・飛騨市!U48,2))) -> 1 | O33: =高山市・飛騨市!V48 -> 800 | P33: =高山市・飛騨市!W48 -> 0 | Q33: 10 | R33: 6500 | S33: 0
A34: 合計 | B34: =SUM(B5:B33) -> 189 | C34: =SUM(C5:C33) -> 302150 | D34: =SUM(D5:D33) -> 0 | E34: 14 | F34: 11200 | G34: =SUM(G5:G33) -> 0 | H34: 2 | I34: 600 | J34: =SUM(J5:J33) -> 0 | K34: 44 | L34: 19150 | M34: 0 | N34: 76 | O34: 128550 | P34: 0 | Q34: 325 | R34: 461650 | S34: 0
U35: ㈱中日総合サービス

Sheet 地図

Sheet 岐阜市
A1: 折込日 | F1: 広告主 | Q1: サイズ | V1: 取次店
F2: チラシ銘柄 | Q2: 部数 | R2: =A6 -> 0
A4: 地区 | D4: 中日新聞 | G4: 枚数 | H4: 朝日新聞 | K4: 枚数 | L4: 毎日新聞 | O4: 枚数 | P4: 読売新聞 | S4: 枚数 | T4: 岐阜新聞 | W4: 枚数 | X4: 備考
A5: 岐阜市 | D5: 210110101195 | E5: 岐阜中央（中野）N | F5: 1450 | P5: 210110405004 | Q5: 岐阜南部 | R5: 700 | T5: 210110504010 | U5: 県庁北AMS | V5: 4900 | X5: 岐阜市全域の場合
A6: =SUM(G48,K48,O48,S48,W48) -> 0 | B6: =SUM(F48,J48,N48,R48,V48) -> 108250 | D6: 210110101350 | E6: 岐阜中野入舟支店NM | F6: 1800 | P6: 210110405005 | Q6: 岐北 | R6: 300 | T6: 210110504020 | U6: 県庁前AMS | V6: 1800 | X6: 羽島郡笠松200枚
D7: 210110101180 | E7: 岐阜北部（松山）N | F7: 1700 | P7: 210110405006 | Q7: 長良 | R7: 450 | T7: 210110504340 | U7: 鶉A | V7: 2050 | X7: 本巣郡北方西郷500枚
D8: 210110101230 | E8: 岐阜駅前N | F8: 1450 | P8: 210110405007 | Q8: 岐阜県庁前 | R8: 750 | T8: 210110504040 | U8: 長森南岐南AMS | V8: 2750 | X8: 山県市高富950枚
D9: 210110101210 | E9: 鏡島N | F9: 1750 | P9: 210110405008 | Q9: 忠節 | R9: 550 | T9: 210110504045 | U9: 岐阜南AMS | V9: 1950 | X9: をプラス
D10: 210110101220 | E10: 岐阜本荘N | F10: 1200 | P10: 210110405011 | Q10: 岐阜本荘 | R10: 400 | T10: 210110504060 | U10: 長森東日野AS | V10: 2200
D11: 210110101250 | E11: 手力NS | F11: 1700 | P11: 210110405012 | Q11: 岐阜東部 | R11: 800 | T11: 210110504070 | U11: 岐阜AMS | V11: 4550
C12: *1 | D12: 210110101240 | E12: 長森NM | F12: 2500 | P12: 210110405014 | Q12: 長良北部 | R12: 500 | T12: 210110504310 | U12: 本郷AMS | V12: 1400 | X12: *1各務原市300枚含む
C13: *2 | D13: 210110101060 | E13: 岩田坂NM | F13: 650 | T13: 210110504380 | U13: 加納三里AMS | V13: 2450 | X13: *2各務原市100枚含む
D14: 210110101170 | E14: 日野長森東NM | F14: 950 | T14: 210110504390 | U14: 加納六条AMS | V14: 2150
D15: 210110101050 | E15: 下芥見NM | F15: 800 | T15: 210110504100 | U15: 茜部川手AMS | V15: 1900
D16: 210110101040 | E16: 大洞NS | F16: 1200 | T16: 210110504110 | U16: 岐阜中部AMS | V16: 2700
D17: 210110101270 | E17: 岐阜加納NM | F17: 1800 | T17: 210110504120 | U17: 岐阜西部AMS | V17: 1050
D18: 210110101320 | E18: 岐阜茜部NMS | F18: 1450 | T18: 210110504130 | U18: 岐阜東部AMS | V18: 2250
D19: 210110101280 | E19: 加納西部NM | F19: 700 | T19: 210110504140 | U19: 東栄AMS | V19: 1600
D20: 210110101290 | E20: 加納六条NM | F20: 1150 | T20: 210110504150 | U20: 長良西部AMS | V20: 2800
D21: 210110101300 | E21: 岐阜県庁前N | F21: 1850 | T21: 210110504170 | U21: 長良東部AMS | V21: 2600
D22: 210110101310 | E22: 鶉NMS | F22: 1000 | T22: 210110504290 | U22: 鷺山西部AMS | V22: 900
D23: 210110101160 | E23: 近の島N | F23: 1350 | T23: 210110504180 | U23: 島AMS | V23: 1050
D24: 210110101130 | E24: 尻毛NS | F24: 1600 | T24: 210110504190 | U24: 城西AMS | V24: 1850
D25: 210110101140 | E25: 岐商前NS | F25: 1500 | T25: 210110504200 | U25: 則武早田AM | V25: 2150
D26: 210110101020 | E26: 鷺山NS | F26: 1250 | T26: 210110504220 | U26: 黒野AMNS | V26: 1500
D27: 210110101340 | E27: 岐阜ときわN | F27: 750 | T27: 210110504230 | U27: 黒野西岐陽AM | V27: 900
D28: 210110101120 | E28: 岐阜則武NS | F28: 1100 | T28: 210110504240 | U28: 北方七郷AMS | V28: 1000
D29: 210110101010 | E29: 鵜飼黒野NAS | F29: 1750 | T29: 210110504245 | U29: 北方東部AMS | V29: 1350
C30: *3 | D30: 210110101030 | E30: 藍川橋NS | F30: 2650 | T30: 210110504250 | U30: 芥見A | V30: 1550 | X30: *3関市1,200枚含む
D31: 210110101080 | E31: 長良北部NS | F31: 1250 | T31: 210110504260 | U31: 藍川AMNS | V31: 2150
D32: 210110101090 | E32: 長良西部N | F32: 2200 | T32: 210110504270 | U32: 岩野田AMN | V32: 1900
D33: 210110101100 | E33: 長良中央N | F33: 900 | T33: 210110504280 | U33: 大洞団地AMNS | V33: 1300
C34: *4 | D34: 210110101360 | E34: 柳津NM | F34: 1400 | T34: 210110504350 | U34: 柳津AMS | V34: 1000 | X34: *4羽島郡300枚含む
D35: 210110101370 | E35: 茜部佐波NMS | F35: 1300
E48: =CONCATENATE(FIXED(COUNTA(E5:E47),0,0)," 店") -> 31 店 | F48: =SUM(F5:F47) -> 44100 | G48: =SUM(G5:G47) -> 0 | I48: =CONCATENATE(FIXED(COUNTA(I5:I47),0,0)," 店") -> 0 店 | J48: =SUM(J5:J47) -> 0 | K48: =SUM(K5:K47) -> 0 | M48: =CONCATENATE(FIXED(COUNTA(M5:M47),0,0)," 店") -> 0 店 | N48: =SUM(N5:N47) -> 0 | O48: =SUM(O5:O47) -> 0 | Q48: =CONCATENATE(FIXED(COUNTA(Q5:Q47),0,0)," 店") -> 8 店 | R48: =SUM(R5:R47) -> 4450 | S48: =SUM(S5:S47) -> 0 | U48: =CONCATENATE(FIXED(COUNTA(U5:U47),0,0)," 店") -> 30 店 | V48: =SUM(V5:V47) -> 59700 | W48: =SUM(W5:W47) -> 0 | X48: =SUM(X5:X47) -> 0
A49: 2025年後期（11月1日以降） | X49: ㈱中日総合サービス

Sheet 瑞穂市・本巣市・本巣郡・山県市
A1: 折込日 | F1: 広告主 | Q1: サイズ | V1: 取次店
F2: チラシ銘柄 | Q2: 部数 | R2: =A6+A18+A31+A41 -> 0
A4: 地区 | D4: 中日新聞 | G4: 枚数 | H4: 朝日新聞 | K4: 枚数 | L4: 毎日新聞 | O4: 枚数 | P4: 読売新聞 | S4: 枚数 | T4: 岐阜新聞 | W4: 枚数 | X4: 備考
A5: 瑞穂市 | D5: 210180101010 | E5: 穂積S | F5: 1350 | P5: 210180405010 | Q5: 瑞穂 | R5: 400 | T5: 210180504015 | U5: 瑞穂NAMS | V5: 2350
A6: =SUM(G14,K14,O14,S14,W14) -> 0 | B6: =SUM(F14,J14,N14,R14,V14) -> 11100 | D6: 210180101045 | E6: 美江寺NAMGS | F6: 2400 | T6: 210180504025 | U6: 瑞穂北NAMS | V6: 2600
D7: 210180101050 | E7: 瑞穂牛牧N | F7: 2000
E14: =CONCATENATE(FIXED(COUNTA(E5:E13),0,0)," 店") -> 3 店 | F14: =SUM(F5:F13) -> 5750 | G14: =SUM(G5:G13) -> 0 | I14: =CONCATENATE(FIXED(COUNTA(I5:I13),0,0)," 店") -> 0 店 | J14: =SUM(J5:J13) -> 0 | K14: =SUM(K5:K13) -> 0 | M14: =CONCATENATE(FIXED(COUNTA(M5:M13),0,0)," 店") -> 0 店 | N14: =SUM(N5:N13) -> 0 | O14: =SUM(O5:O13) -> 0 | Q14: =CONCATENATE(FIXED(COUNTA(Q5:Q13),0,0)," 店") -> 1 店 | R14: =SUM(R5:R13) -> 400 | S14: =SUM(S5:S13) -> 0 | U14: =CONCATENATE(FIXED(COUNTA(U5:U13),0,0)," 店") -> 2 店 | V14: =SUM(V5:V13) -> 4950 | W14: =SUM(W5:W13) -> 0 | X14: =SUM(X5:X13) -> 0
A16: 地区 | D16: 中日新聞 | G16: 枚数 | H16: 朝日新聞 | K16: 枚数 | L16: 毎日新聞 | O16: 枚数 | P16: 読売新聞 | S16: 枚数 | T16: 岐阜新聞 | W16: 枚数 | X16: 備考
A17: 本巣市 | D17: 210150101080 | E17: 北方西部NS | F17: 1950 | T17: 210150504040 | U17: 糸貫AMS | V17: 1650
A18: =SUM(G27,K27,O27,S27,W27) -> 0 | B18: =SUM(F27,J27,N27,R27,V27) -> 7600 | T18: 210150504060 | U18: 真正AM | V18: 1650
T19: 210150501040 | U19: 山添CNAMS | V19: 1750
T20: 210170501050 | U20: 根尾CNAM | V20: 600
E27: =CONCATENATE(FIXED(COUNTA(E17:E26),0,0)," 店") -> 1 店 | F27: =SUM(F17:F26) -> 1950 | G27: =SUM(G17:G26) -> 0 | I27: =CONCATENATE(FIXED(COUNTA(I17:I26),0,0)," 店") -> 0 店 | J27: =SUM(J17:J26) -> 0 | K27: =SUM(K17:K26) -> 0 | M27: =CONCATENATE(FIXED(COUNTA(M17:M26),0,0)," 店") -> 0 店 | N27: =SUM(N17:N26) -> 0 | O27: =SUM(O17:O26) -> 0 | Q27: =CONCATENATE(FIXED(COUNTA(Q17:Q26),0,0)," 店") -> 0 店 | R27: =SUM(R17:R26) -> 0 | S27: =SUM(S17:S26) -> 0 | U27: =CONCATENATE(FIXED(COUNTA(U17:U26),0,0)," 店") -> 4 店 | V27: =SUM(V17:V26) -> 5650 | W27: =SUM(W17:W26) -> 0 | X27: =SUM(X17:X26) -> 0
A29: 地区 | D29: 中日新聞 | G29: 枚数 | H29: 朝日新聞 | K29: 枚数 | L29: 毎日新聞 | O29: 枚数 | P29: 読売新聞 | S29: 枚数 | T29: 岐阜新聞 | W29: 枚数 | X29: 備考
A30: 本巣郡 | D30: 210155101010 | E30: 北方NS | F30: 1500 | P30: 210155405010 | Q30: 本巣北方 | R30: 400
A31: =SUM(G37,K37,O37,S37,W37) -> 0 | B31: =SUM(F37,J37,N37,R37,V37) -> 3150 | C31: *1 | D31: 210155101020 | E31: 北方西郷NS | F31: 1250 | X31: *1岐阜市500枚含む
E37: =CONCATENATE(FIXED(COUNTA(E30:E36),0,0)," 店") -> 2 店 | F37: =SUM(F30:F36) -> 2750 | G37: =SUM(G30:G36) -> 0 | I37: =CONCATENATE(FIXED(COUNTA(I30:I36),0,0)," 店") -> 0 店 | J37: =SUM(J30:J36) -> 0 | K37: =SUM(K30:K36) -> 0 | M37: =CONCATENATE(FIXED(COUNTA(M30:M36),0,0)," 店") -> 0 店 | N37: =SUM(N30:N36) -> 0 | O37: =SUM(O30:O36) -> 0 | Q37: =CONCATENATE(FIXED(COUNTA(Q30:Q36),0,0)," 店") -> 1 店 | R37: =SUM(R30:R36) -> 400 | S37: =SUM(S30:S36) -> 0 | U37: =CONCATENATE(FIXED(COUNTA(U30:U36),0,0)," 店") -> 0 店 | V37: =SUM(V30:V36) -> 0 | W37: =SUM(W30:W36) -> 0 | X37: =SUM(X30:X36) -> 0
A39: 地区 | D39: 中日新聞 | G39: 枚数 | H39: 朝日新聞 | K39: 枚数 | L39: 毎日新聞 | O39: 枚数 | P39: 読売新聞 | S39: 枚数 | T39: 岐阜新聞 | W39: 枚数 | X39: 備考
A40: 山県市 | C40: *2 | D40: 210160101020 | E40: 高富NA | F40: 2500 | P40: 210160405002 | Q40: 高富大桑 | R40: 100 | T40: 210160504020 | U40: 山県NMS | V40: 2100 | X40: *2岐阜市950枚含む
A41: =SUM(G48,K48,O48,S48,W48) -> 0 | B41: =SUM(F48,J48,N48,R48,V48) -> 7700 | D41: 210160101011 | E41: 岐阜美山NAMGYS | F41: 1350 | T41: 210160504010 | U41: 山県高富AMNS | V41: 1650
E48: =CONCATENATE(FIXED(COUNTA(E40:E47),0,0)," 店") -> 2 店 | F48: =SUM(F40:F47) -> 3850 | G48: =SUM(G40:G47) -> 0 | I48: =CONCATENATE(FIXED(COUNTA(I40:I47),0,0)," 店") -> 0 店 | J48: =SUM(J40:J47) -> 0 | K48: =SUM(K40:K47) -> 0 | M48: =CONCATENATE(FIXED(COUNTA(M40:M47),0,0)," 店") -> 0 店 | N48: =SUM(N40:N47) -> 0 | O48: =SUM(O40:O47) -> 0 | Q48: =CONCATENATE(FIXED(COUNTA(Q40:Q47),0,0)," 店") -> 1 店 | R48: =SUM(R40:R47) -> 100 | S48: =SUM(S40:S47) -> 0 | U48: =CONCATENATE(FIXED(COUNTA(U40:U47),0,0)," 店") -> 2 店 | V48: =SUM(V40:V47) -> 3750 | W48: =SUM(W40:W47) -> 0 | X48: =SUM(X40:X47) -> 0
A49: 2025年後期（11月1日以降） | X49: ㈱中日総合サービス

Sheet 羽島市・羽島郡
A1: 折込日 | F1: 広告主 | Q1: サイズ | V1: 取次店
F2: チラシ銘柄 | Q2: 部数 | R2: =A6+A30 -> 0
A4: 地区 | D4: 中日新聞 | G4: 枚数 | H4: 朝日新聞 | K4: 枚数 | L4: 毎日新聞 | O4: 枚数 | P4: 読売新聞 | S4: 枚数 | T4: 岐阜新聞 | W4: 枚数 | X4: 備考
A5: 羽島市 | D5: 210120101020 | E5: 羽島東部N | F5: 2200 | P5: 210120405001 | Q5: 羽島 | R5: 550 | T5: 210120504010 | U5: 羽島中央AMS | V5: 1450
A6: =SUM(G26,K26,O26,S26,W26) -> 0 | B6: =SUM(F26,J26,N26,R26,V26) -> 13850 | D6: 210120101040 | E6: 羽島足近N | F6: 800 | T6: 210120504020 | U6: 羽島南部AMS | V6: 1800
D7: 210120101030 | E7: 羽島中央N | F7: 1000 | T7: 210120504030 | U7: 羽島北部AMS | V7: 1400
D8: 210120101010 | E8: 竹ヶ鼻N | F8: 2350
D9: 210120101050 | E9: 羽島小熊N | F9: 1200
D10: 210120101060 | E10: 羽島南部N | F10: 1100
E26: =CONCATENATE(FIXED(COUNTA(E5:E25),0,0)," 店") -> 6 店 | F26: =SUM(F5:F25) -> 8650 | G26: =SUM(G5:G25) -> 0 | I26: =CONCATENATE(FIXED(COUNTA(I5:I25),0,0)," 店") -> 0 店 | J26: =SUM(J5:J25) -> 0 | K26: =SUM(K5:K25) -> 0 | M26: =CONCATENATE(FIXED(COUNTA(M5:M25),0,0)," 店") -> 0 店 | N26: =SUM(N5:N25) -> 0 | O26: =SUM(O5:O25) -> 0 | Q26: =CONCATENATE(FIXED(COUNTA(Q5:Q25),0,0)," 店") -> 1 店 | R26: =SUM(R5:R25) -> 550 | S26: =SUM(S5:S25) -> 0 | U26: =CONCATENATE(FIXED(COUNTA(U5:U25),0,0)," 店") -> 3 店 | V26: =SUM(V5:V25) -> 4650 | W26: =SUM(W5:W25) -> 0 | X26: =SUM(X5:X25) -> 0
A28: 地区 | D28: 中日新聞 | G28: 枚数 | H28: 朝日新聞 | K28: 枚数 | L28: 毎日新聞 | O28: 枚数 | P28: 読売新聞 | S28: 枚数 | T28: 岐阜新聞 | W28: 枚数 | X28: 備考
A29: 羽島郡 | D29: 210140101050 | E29: 岐南徳田N | F29: 1300 | P29: 210140405002 | Q29: 岐南笠松 | R29: 850 | T29: 210140504030 | U29: 笠松AMS | V29: 1600 | X29: 羽島郡全域の場合
A30: =SUM(G48,K48,O48,S48,W48) -> 0 | B30: =SUM(F48,J48,N48,R48,V48) -> 7250 | D30: 210140101060 | E30: 岐南東N | F30: 1550 | X30: 岐阜市柳津300枚をプラス
C31: *1 | D31: 210140101010 | E31: 笠松N | F31: 1950 | X31: *1岐阜市200枚含む
A33: =SUM(F41,J41,N41,R41,V41) -> 0 | B33: =SUM(G41,K41,O41,S41,W41) -> 0
E48: =CONCATENATE(FIXED(COUNTA(E29:E47),0,0)," 店") -> 3 店 | F48: =SUM(F29:F47) -> 4800 | G48: =SUM(G29:G47) -> 0 | I48: =CONCATENATE(FIXED(COUNTA(I29:I47),0,0)," 店") -> 0 店 | J48: =SUM(J29:J47) -> 0 | K48: =SUM(K29:K47) -> 0 | M48: =CONCATENATE(FIXED(COUNTA(M29:M47),0,0)," 店") -> 0 店 | N48: =SUM(N29:N47) -> 0 | O48: =SUM(O29:O47) -> 0 | Q48: =CONCATENATE(FIXED(COUNTA(Q29:Q47),0,0)," 店") -> 1 店 | R48: =SUM(R29:R47) -> 850 | S48: =SUM(S29:S47) -> 0 | U48: =CONCATENATE(FIXED(COUNTA(U29:U47),0,0)," 店") -> 1 店 | V48: =SUM(V29:V47) -> 1600 | W48: =SUM(W29:W47) -> 0 | X48: =SUM(X29:X47) -> 0
A49: 2025年後期（11月1日以降） | X49: ㈱中日総合サービス

Sheet 各務原市
A1: 折込日 | F1: 広告主 | Q1: サイズ | V1: 取次店
F2: チラシ銘柄 | Q2: 部数 | R2: =A6 -> 0
A4: 地区 | D4: 中日新聞 | G4: 枚数 | H4: 朝日新聞 | K4: 枚数 | L4: 毎日新聞 | O4: 枚数 | P4: 読売新聞 | S4: 枚数 | T4: 岐阜新聞 | W4: 枚数 | X4: 備考
A5: 各務原市 | D5: 210130101010 | E5: 那加中央NS | F5: 1100 | L5: 210130303010 | M5: 新那加 | N5: 50 | P5: 210130405001 | Q5: 各務原中央 | R5: 600 | T5: 210130504010 | U5: 那加西部AMS | V5: 2650 | X5: 各務原市全域の場合
A6: =SUM(G48,K48,O48,S48,W48) -> 0 | B6: =SUM(F48,J48,N48,R48,V48) -> 31850 | D6: 210130101020 | E6: 那加北部NS | F6: 2350 | L6: 210130303040 | M6: 鵜沼各務原 | N6: 550 | P6: 210130405002 | Q6: 鵜沼 | R6: 250 | T6: 210130504020 | U6: 那加東部AMS | V6: 1350 | X6: 岐阜市長森300枚
D7: 210130101040 | E7: 稲羽N | F7: 1350 | P7: 210130405003 | Q7: 川島 | R7: 150 | T7: 210130504040 | U7: 蘇原AMS | V7: 2350 | X7: 岐阜市岩田坂100枚
D8: 210130101050 | E8: 蘇原N | F8: 1300 | T8: 210130504030 | U8: 蘇原北尾崎AMS | V8: 1700 | X8: をプラス
D9: 210130101060 | E9: 蘇原北部NS | F9: 1100 | T9: 210130504050 | U9: 鵜沼かかみAM | V9: 1400
D10: 210130101070 | E10: 尾崎団地N | F10: 850 | T10: 210130504060 | U10: 鵜沼各務原AM | V10: 1950
D11: 210130101080 | E11: 各務原中央町NS | F11: 1650
D12: 210130101090 | E12: 各務原NS | F12: 3100
D13: 210130101110 | E13: 鵜沼団地NS | F13: 2400
D14: 210130101130 | E14: 鵜沼東NS | F14: 2250
D15: 210130101120 | E15: 岐阜川島NAMGS | F15: 1400
E48: =CONCATENATE(FIXED(COUNTA(E5:E47),0,0)," 店") -> 11 店 | F48: =SUM(F5:F47) -> 18850 | G48: =SUM(G5:G47) -> 0 | I48: =CONCATENATE(FIXED(COUNTA(I5:I47),0,0)," 店") -> 0 店 | J48: =SUM(J5:J47) -> 0 | K48: =SUM(K5:K47) -> 0 | M48: =CONCATENATE(FIXED(COUNTA(M5:M47),0,0)," 店") -> 2 店 | N48: =SUM(N5:N47) -> 600 | O48: =SUM(O5:O47) -> 0 | Q48: =CONCATENATE(FIXED(COUNTA(Q5:Q47),0,0)," 店") -> 3 店 | R48: =SUM(R5:R47) -> 1000 | S48: =SUM(S5:S47) -> 0 | U48: =CONCATENATE(FIXED(COUNTA(U5:U47),0,0)," 店") -> 6 店 | V48: =SUM(V5:V47) -> 11400 | W48: =SUM(W5:W47) -> 0 | X48: =SUM(X5:X47) -> 0
A49: 2025年後期（11月1日以降） | X49: ㈱中日総合サービス

Sheet 大垣市・海津市・揖斐郡
A1: 折込日 | F1: 広告主 | Q1: サイズ | V1: 取次店
F2: チラシ銘柄 | Q2: 部数 | R2: =A6+A26+A40 -> 0
A4: 地区 | D4: 中日新聞 | G4: 枚数 | H4: 朝日新聞 | K4: 枚数 | L4: 毎日新聞 | O4: 枚数 | P4: 読売新聞 | S4: 枚数 | T4: 岐阜新聞 | W4: 枚数 | X4: 備考
A5: 大垣市 | D5: 210210101020 | E5: 大垣駅西NS | F5: 2200 | H5: 210210202010 | I5: 大垣東部 | J5: 1000 | P5: 210210405001 | Q5: 大垣西部 | R5: 300 | T5: 210210504020 | U5: 大垣東部MS | V5: 1750 | X5: 大垣市全域の場合
A6: =SUM(G22,K22,O22,S22,W22) -> 0 | B6: =SUM(F22,J22,N22,R22,V22) -> 36100 | D6: 210210101010 | E6: 大垣N | F6: 4950 | P6: 210210405002 | Q6: 大垣北部 | R6: 650 | T6: 210210504030 | U6: 大垣西部AMS | V6: 2950 | X6: 不破郡垂井350枚プラス
D7: 210210101110 | E7: 大垣東部N | F7: 1400 | P7: 210210405004 | Q7: 大垣 | R7: 600 | T7: 210210504045 | U7: 大垣駅前AMS | V7: 2650
D8: 210210101040 | E8: 大垣西部NS | F8: 1550 | T8: 210210504050 | U8: 大垣赤坂AM | V8: 1550
D9: 210210101060 | E9: 大垣中川NAMGS | F9: 2050 | T9: 210215504010 | U9: 上石津AM | V9: 500
C10: *1 | D10: 210210101070 | E10: 大垣（大迫）NAMGYS | F10: 3550 | X10: *1養老郡養老町
D11: 210210101050 | E11: 北垣NMGS | F11: 3350 | X11: 1,200枚含む
D12: 210210101080 | E12: 美濃赤坂NAS | F12: 2250
C13: *2 | D13: 210215101010 | E13: 墨俣NAMGS | F13: 1950 | X13: *2安八郡安八町
D14: 210215101020 | E14: 上石津NYS | F14: 900 | X14: 1,100枚含む
E22: =CONCATENATE(FIXED(COUNTA(E5:E21),0,0)," 店") -> 10 店 | F22: =SUM(F5:F21) -> 24150 | G22: =SUM(G5:G21) -> 0 | I22: =CONCATENATE(FIXED(COUNTA(I5:I21),0,0)," 店") -> 1 店 | J22: =SUM(J5:J21) -> 1000 | K22: =SUM(K5:K21) -> 0 | M22: =CONCATENATE(FIXED(COUNTA(M5:M21),0,0)," 店") -> 0 店 | N22: =SUM(N5:N21) -> 0 | O22: =SUM(O5:O21) -> 0 | Q22: =CONCATENATE(FIXED(COUNTA(Q5:Q21),0,0)," 店") -> 3 店 | R22: =SUM(R5:R21) -> 1550 | S22: =SUM(S5:S21) -> 0 | U22: =CONCATENATE(FIXED(COUNTA(U5:U21),0,0)," 店") -> 5 店 | V22: =SUM(V5:V21) -> 9400 | W22: =SUM(W5:W21) -> 0 | X22: =SUM(X5:X21) -> 0
A24: 地区 | D24: 中日新聞 | G24: 枚数 | H24: 朝日新聞 | K24: 枚数 | L24: 毎日新聞 | O24: 枚数 | P24: 読売新聞 | S24: 枚数 | T24: 岐阜新聞 | W24: 枚数 | X24: 備考
A25: 海津市 | D25: 210260101010 | E25: 海津平田NAMGS | F25: 1550 | P25: 210260405001 | Q25: 海津 | R25: 350 | T25: 210260504030 | U25: 高須A | V25: 650 | X25: 海津市全域の場合
A26: =SUM(G36,K36,O36,S36,W36) -> 0 | B26: =SUM(F36,J36,N36,R36,V36) -> 7200 | D26: 210260101030 | E26: 海津高須NMS | F26: 1450 | X26: 養老郡養老450枚プラス
D27: 210260101040 | E27: 石津NAMGS | F27: 2100
D28: 210260101050 | E28: 駒野NAMGS | F28: 1100
E36: =CONCATENATE(FIXED(COUNTA(E25:E35),0,0)," 店") -> 4 店 | F36: =SUM(F25:F35) -> 6200 | G36: =SUM(G25:G35) -> 0 | I36: =CONCATENATE(FIXED(COUNTA(I25:I35),0,0)," 店") -> 0 店 | J36: =SUM(J25:J35) -> 0 | K36: =SUM(K25:K35) -> 0 | M36: =CONCATENATE(FIXED(COUNTA(M25:M35),0,0)," 店") -> 0 店 | N36: =SUM(N25:N35) -> 0 | O36: =SUM(O25:O35) -> 0 | Q36: =CONCATENATE(FIXED(COUNTA(Q25:Q35),0,0)," 店") -> 1 店 | R36: =SUM(R25:R35) -> 350 | S36: =SUM(S25:S35) -> 0 | U36: =CONCATENATE(FIXED(COUNTA(U25:U35),0,0)," 店") -> 1 店 | V36: =SUM(V25:V35) -> 650 | W36: =SUM(W25:W35) -> 0 | X36: =SUM(X25:X35) -> 0
A38: 地区 | D38: 中日新聞 | G38: 枚数 | H38: 朝日新聞 | K38: 枚数 | L38: 毎日新聞 | O38: 枚数 | P38: 読売新聞 | S38: 枚数 | T38: 岐阜新聞 | W38: 枚数 | X38: 備考
A39: 揖斐郡 | D39: 210221101010 | E39: 大野黒野NS | F39: 2300 | P39: 210221405001 | Q39: 揖斐大野 | R39: 300 | T39: 210221504010 | U39: 大野AM | V39: 2100
A40: =SUM(G48,K48,O48,S48,W48) -> 0 | B40: =SUM(F48,J48,N48,R48,V48) -> 14050 | D40: 210220101030 | E40: 大垣池田NAMGS | F40: 3900 | P40: 210220405010 | Q40: 池田町 | R40: 100 | T40: 210221504020 | U40: 大野西AM | V40: 1400
D41: 210220101040 | E41: 揖斐NAMGS | F41: 3150 | T41: 210220504010 | U41: 池田南AS | V41: 800
E48: =CONCATENATE(FIXED(COUNTA(E39:E47),0,0)," 店") -> 3 店 | F48: =SUM(F39:F47) -> 9350 | G48: =SUM(G39:G47) -> 0 | I48: =CONCATENATE(FIXED(COUNTA(I39:I47),0,0)," 店") -> 0 店 | J48: =SUM(J39:J47) -> 0 | K48: =SUM(K39:K47) -> 0 | M48: =CONCATENATE(FIXED(COUNTA(M39:M47),0,0)," 店") -> 0 店 | N48: =SUM(N39:N47) -> 0 | O48: =SUM(O39:O47) -> 0 | Q48: =CONCATENATE(FIXED(COUNTA(Q39:Q47),0,0)," 店") -> 2 店 | R48: =SUM(R39:R47) -> 400 | S48: =SUM(S39:S47) -> 0 | U48: =CONCATENATE(FIXED(COUNTA(U39:U47),0,0)," 店") -> 3 店 | V48: =SUM(V39:V47) -> 4300 | W48: =SUM(W39:W47) -> 0 | X48: =SUM(X39:X47) -> 0
A49: 2025年後期（11月1日以降） | X49: ㈱中日総合サービス

Sheet 不破郡・安八郡・養老郡
A1: 折込日 | F1: 広告主 | Q1: サイズ | V1: 取次店
F2: チラシ銘柄 | Q2: 部数 | R2: =A6+A18+A35 -> 0
A4: 地区 | D4: 中日新聞 | G4: 枚数 | H4: 朝日新聞 | K4: 枚数 | L4: 毎日新聞 | O4: 枚数 | P4: 読売新聞 | S4: 枚数 | T4: 岐阜新聞 | W4: 枚数 | X4: 備考
A5: 不破郡 | C5: *1 | D5: 210230101010 | E5: 垂井NS | F5: 2250 | P5: 210230405020 | Q5: 垂井 | R5: 250 | T5: 210230504010 | U5: 垂井AM | V5: 2650 | X5: *1大垣市350枚含む
A6: =SUM(G14,K14,O14,S14,W14) -> 0 | B6: =SUM(F14,J14,N14,R14,V14) -> 8450 | C6: *2 | D6: 210230101020 | E6: 垂井南部NYS | F6: 1700 | X6: *2養老町150枚含む
D7: 210230101030 | E7: 関ヶ原NAMGS | F7: 1600
E14: =CONCATENATE(FIXED(COUNTA(E5:E13),0,0)," 店") -> 3 店 | F14: =SUM(F5:F13) -> 5550 | G14: =SUM(G5:G13) -> 0 | I14: =CONCATENATE(FIXED(COUNTA(I5:I13),0,0)," 店") -> 0 店 | J14: =SUM(J5:J13) -> 0 | K14: =SUM(K5:K13) -> 0 | M14: =CONCATENATE(FIXED(COUNTA(M5:M13),0,0)," 店") -> 0 店 | N14: =SUM(N5:N13) -> 0 | O14: =SUM(O5:O13) -> 0 | Q14: =CONCATENATE(FIXED(COUNTA(Q5:Q13),0,0)," 店") -> 1 店 | R14: =SUM(R5:R13) -> 250 | S14: =SUM(S5:S13) -> 0 | U14: =CONCATENATE(FIXED(COUNTA(U5:U13),0,0)," 店") -> 1 店 | V14: =SUM(V5:V13) -> 2650 | W14: =SUM(W5:W13) -> 0 | X14: =SUM(X5:X13) -> 0
A16: 地区 | D16: 中日新聞 | G16: 枚数 | H16: 朝日新聞 | K16: 枚数 | L16: 毎日新聞 | O16: 枚数 | P16: 読売新聞 | S16: 枚数 | T16: 岐阜新聞 | W16: 枚数 | X16: 備考
A17: 安八郡 | D17: 210250101030 | E17: 広神戸NAMGS | F17: 4400 | P17: 210250405002 | Q17: 安八 | R17: 100 | X17: 安八郡全域の場合
A18: =SUM(G31,K31,O31,S31,W31) -> 0 | B18: =SUM(F31,J31,N31,R31,V31) -> 8200 | D18: 210250101040 | E18: 安八NAMGS | F18: 1700 | P18: 210250405001 | Q18: 輪之内 | R18: 100 | X18: 大垣市墨俣1,100枚
D19: 210250101020 | E19: 輪之内NAMGS | F19: 1900 | X19: をプラス
E31: =CONCATENATE(FIXED(COUNTA(E17:E30),0,0)," 店") -> 3 店 | F31: =SUM(F17:F30) -> 8000 | G31: =SUM(G17:G30) -> 0 | I31: =CONCATENATE(FIXED(COUNTA(I17:I30),0,0)," 店") -> 0 店 | J31: =SUM(J17:J30) -> 0 | K31: =SUM(K17:K30) -> 0 | M31: =CONCATENATE(FIXED(COUNTA(M17:M30),0,0)," 店") -> 0 店 | N31: =SUM(N17:N30) -> 0 | O31: =SUM(O17:O30) -> 0 | Q31: =CONCATENATE(FIXED(COUNTA(Q17:Q30),0,0)," 店") -> 2 店 | R31: =SUM(R17:R30) -> 200 | S31: =SUM(S17:S30) -> 0 | U31: =CONCATENATE(FIXED(COUNTA(U17:U30),0,0)," 店") -> 0 店 | V31: =SUM(V17:V30) -> 0 | W31: =SUM(W17:W30) -> 0 | X31: =SUM(X20:X30) -> 0
A33: 地区 | D33: 中日新聞 | G33: 枚数 | H33: 朝日新聞 | K33: 枚数 | L33: 毎日新聞 | O33: 枚数 | P33: 読売新聞 | S33: 枚数 | T33: 岐阜新聞 | W33: 枚数 | X33: 備考
A34: 養老郡 | D34: 210240101010 | E34: 美濃高田NYS | F34: 2300 | T34: 210240504010 | U34: 高田AM | V34: 2150 | X34: 養老郡全域の場合
A35: =SUM(G48,K48,O48,S48,W48) -> 0 | B35: =SUM(F48,J48,N48,R48,V48) -> 6500 | C35: *3 | D35: 210240101020 | E35: 養老NAMYGS | F35: 1650 | T35: 210240504020 | U35: 栗笠M | V35: 400 | X35: 大垣市大垣(大迫)
X36: 1,200枚
X37: 不破郡垂井南部
X38: 150枚
X39: をプラス
X41: *3海津市450枚含む
E48: =CONCATENATE(FIXED(COUNTA(E34:E47),0,0)," 店") -> 2 店 | F48: =SUM(F34:F47) -> 3950 | G48: =SUM(G34:G47) -> 0 | I48: =CONCATENATE(FIXED(COUNTA(I34:I47),0,0)," 店") -> 0 店 | J48: =SUM(J34:J47) -> 0 | K48: =SUM(K34:K47) -> 0 | M48: =CONCATENATE(FIXED(COUNTA(M34:M47),0,0)," 店") -> 0 店 | N48: =SUM(N34:N47) -> 0 | O48: =SUM(O34:O47) -> 0 | Q48: =CONCATENATE(FIXED(COUNTA(Q34:Q47),0,0)," 店") -> 0 店 | R48: =SUM(R34:R47) -> 0 | S48: =SUM(S34:S47) -> 0 | U48: =CONCATENATE(FIXED(COUNTA(U34:U47),0,0)," 店") -> 2 店 | V48: =SUM(V34:V47) -> 2550 | W48: =SUM(W34:W47) -> 0 | X48: =SUM(X34:X47) -> 0
A49: 2025年後期（11月1日以降） | X49: ㈱中日総合サービス

Sheet 美濃加茂市・加茂郡
A1: 折込日 | F1: 広告主 | Q1: サイズ | V1: 取次店
F2: チラシ銘柄 | Q2: 部数 | R2: =A6+A25 -> 0
A4: 地区 | D4: 中日新聞 | G4: 枚数 | H4: 朝日新聞 | K4: 枚数 | L4: 毎日新聞 | O4: 枚数 | P4: 読売新聞 | S4: 枚数 | T4: 岐阜新聞 | W4: 枚数 | X4: 備考
A5: 美濃加茂市 | D5: 210320101010 | E5: 美濃太田NS | F5: 1550 | P5: 210320405001 | Q5: 美濃加茂 | R5: 800 | T5: 210320504010 | U5: 美濃加茂AMS | V5: 1650 | X5: 美濃加茂市全域の場合
A6: =SUM(G21,K21,O21,S21,W21) -> 0 | B6: =SUM(F21,J21,N21,R21,V21) -> 10050 | D6: 210320101050 | E6: 美濃加茂NAMGS | F6: 2950 | X6: 加茂郡加茂野800枚
D7: 210320101040 | E7: 古井NAMGS | F7: 3100 | X7: をプラス
E21: =CONCATENATE(FIXED(COUNTA(E5:E20),0,0)," 店") -> 3 店 | F21: =SUM(F5:F20) -> 7600 | G21: =SUM(G5:G20) -> 0 | I21: =CONCATENATE(FIXED(COUNTA(I5:I20),0,0)," 店") -> 0 店 | J21: =SUM(J5:J20) -> 0 | K21: =SUM(K5:K20) -> 0 | M21: =CONCATENATE(FIXED(COUNTA(M5:M20),0,0)," 店") -> 0 店 | N21: =SUM(N5:N20) -> 0 | O21: =SUM(O5:O20) -> 0 | Q21: =CONCATENATE(FIXED(COUNTA(Q5:Q20),0,0)," 店") -> 1 店 | R21: =SUM(R5:R20) -> 800 | S21: =SUM(S5:S20) -> 0 | U21: =CONCATENATE(FIXED(COUNTA(U5:U20),0,0)," 店") -> 1 店 | V21: =SUM(V5:V20) -> 1650 | W21: =SUM(W5:W20) -> 0 | X21: =SUM(X5:X20) -> 0
A23: 地区 | D23: 中日新聞 | G23: 枚数 | H23: 朝日新聞 | K23: 枚数 | L23: 毎日新聞 | O23: 枚数 | P23: 読売新聞 | S23: 枚数 | T23: 岐阜新聞 | W23: 枚数 | X23: 備考
A24: 加茂郡 | C24: *1 | D24: 210340101011 | E24: 川辺NAMGY | F24: 2100 | P24: 210340405003 | Q24: 七宗 | R24: 100 | T24: 210340504020 | U24: 坂祝AM | V24: 550 | X24: *1八百津町150枚含む
A25: =SUM(G48,K48,O48,S48,W48) -> 0 | B25: =SUM(F48,J48,N48,R48,V48) -> 12150 | D25: 210340101020 | E25: 坂祝NS | F25: 1100 | X25: *2美濃加茂市800枚
C26: *2 | D26: 210340101030 | E26: 加茂野NAMGYS | F26: 2500 | X26: 川辺町300枚含む
D27: 210340101140 | E27: 白川口NAMG | F27: 700
D28: 210340101080 | E28: 切井AMG | F28: 200
D29: 210340101090 | E29: 黒川NAMG | F29: 500
D30: 210340101110 | E30: 赤河NAMG | F30: 400
D31: 210340101120 | E31: 下油井NAMG | F31: 350
D32: 210340101130 | E32: 佐見NAMGS | F32: 300
D33: 210340101040 | E33: 神土NAMGS | F33: 650
D34: 210340101070 | E34: 七宗NAMG | F34: 800
D35: 210340101050 | E35: 八百津NAMGYS | F35: 1900
E48: =CONCATENATE(FIXED(COUNTA(E24:E47),0,0)," 店") -> 12 店 | F48: =SUM(F24:F47) -> 11500 | G48: =SUM(G24:G47) -> 0 | I48: =CONCATENATE(FIXED(COUNTA(I24:I47),0,0)," 店") -> 0 店 | J48: =SUM(J24:J47) -> 0 | K48: =SUM(K24:K47) -> 0 | M48: =CONCATENATE(FIXED(COUNTA(M24:M47),0,0)," 店") -> 0 店 | N48: =SUM(N24:N47) -> 0 | O48: =SUM(O24:O47) -> 0 | Q48: =CONCATENATE(FIXED(COUNTA(Q24:Q47),0,0)," 店") -> 1 店 | R48: =SUM(R24:R47) -> 100 | S48: =SUM(S24:S47) -> 0 | U48: =CONCATENATE(FIXED(COUNTA(U24:U47),0,0)," 店") -> 1 店 | V48: =SUM(V24:V47) -> 550 | W48: =SUM(W24:W47) -> 0 | X48: =SUM(X24:X47) -> 0
A49: 2025年後期（11月1日以降） | X49: ㈱中日総合サービス

Sheet 美濃市・関市・郡上市
A1: 折込日 | F1: 広告主 | Q1: サイズ | V1: 取次店
F2: チラシ銘柄 | Q2: 部数 | R2: =A6+A18+A35 -> 0
A4: 地区 | D4: 中日新聞 | G4: 枚数 | H4: 朝日新聞 | K4: 枚数 | L4: 毎日新聞 | O4: 枚数 | P4: 読売新聞 | S4: 枚数 | T4: 岐阜新聞 | W4: 枚数 | X4: 備考
A5: 美濃市 | D5: 210310101010 | E5: 美濃市NAMGYS | F5: 2100 | T5: 210310504020 | U5: 牧谷AM | V5: 700 | X5: 美濃市全域の場合
A6: =SUM(G14,K14,O14,S14,W14) -> 0 | B6: =SUM(F14,J14,N14,R14,V14) -> 4250 | D6: 210310101020 | E6: 牧谷NAMGYS | F6: 1450 | X6: 関市関小瀬800枚
X7: をプラス
E14: =CONCATENATE(FIXED(COUNTA(E5:E13),0,0)," 店") -> 2 店 | F14: =SUM(F5:F13) -> 3550 | G14: =SUM(G5:G13) -> 0 | I14: =CONCATENATE(FIXED(COUNTA(I5:I13),0,0)," 店") -> 0 店 | J14: =SUM(J5:J13) -> 0 | K14: =SUM(K5:K13) -> 0 | M14: =CONCATENATE(FIXED(COUNTA(M5:M13),0,0)," 店") -> 0 店 | N14: =SUM(N5:N13) -> 0 | O14: =SUM(O5:O13) -> 0 | Q14: =CONCATENATE(FIXED(COUNTA(Q5:Q13),0,0)," 店") -> 0 店 | R14: =SUM(R5:R13) -> 0 | S14: =SUM(S5:S13) -> 0 | U14: =CONCATENATE(FIXED(COUNTA(U5:U13),0,0)," 店") -> 1 店 | V14: =SUM(V5:V13) -> 700 | W14: =SUM(W5:W13) -> 0 | X14: =SUM(X5:X13) -> 0
A16: 地区 | D16: 中日新聞 | G16: 枚数 | H16: 朝日新聞 | K16: 枚数 | L16: 毎日新聞 | O16: 枚数 | P16: 読売新聞 | S16: 枚数 | T16: 岐阜新聞 | W16: 枚数 | X16: 備考
A17: 関市 | D17: 210330101010 | E17: 関N | F17: 2350 | P17: 210330405001 | Q17: 関 | R17: 400 | T17: 210330504020 | U17: 関南部AMS | V17: 2000 | X17: 関市全域の場合
A18: =SUM(G31,K31,O31,S31,W31) -> 0 | B18: =SUM(F31,J31,N31,R31,V31) -> 20500 | D18: 210330101030 | E18: 関西部N | F18: 1700 | P18: 210350405001 | Q18: 洞戸 | R18: 50 | T18: 210330504030 | U18: 関東部AMS | V18: 1150 | X18: 岐阜市藍川橋1,200枚
C19: ※1 | D19: 210330101031 | E19: 関小瀬NAMYGS | F19: 1400 | T19: 210330504040 | U19: 小金田NAMS | V19: 2400 | X19: をプラス
D20: 210330101020 | E20: 関東部N | F20: 1950 | T20: 210330504090 | U20: 関北部AMS | V20: 1350 | X20: ※1美濃市800枚を含む
D21: 210330101050 | E21: 関南部N | F21: 1550 | T21: 210330504060 | U21: 関武芸川CNAMS | V21: 1300
D22: 210330101060 | E22: 関富野NAMG | F22: 500 | T22: 210330504085 | U22: 上之保CNAM | V22: 650
D23: 210330101070 | E23: 中之保（下之保）NAMG | F23: 850 | T23: 210350504010 | U23: 洞戸CNAM | V23: 900
E31: =CONCATENATE(FIXED(COUNTA(E17:E30),0,0)," 店") -> 7 店 | F31: =SUM(F17:F30) -> 10300 | G31: =SUM(G17:G30) -> 0 | I31: =CONCATENATE(FIXED(COUNTA(I17:I30),0,0)," 店") -> 0 店 | J31: =SUM(J17:J30) -> 0 | K31: =SUM(K17:K30) -> 0 | M31: =CONCATENATE(FIXED(COUNTA(M17:M30),0,0)," 店") -> 0 店 | N31: =SUM(N17:N30) -> 0 | O31: =SUM(O17:O30) -> 0 | Q31: =CONCATENATE(FIXED(COUNTA(Q17:Q30),0,0)," 店") -> 2 店 | R31: =SUM(R17:R30) -> 450 | S31: =SUM(S17:S30) -> 0 | U31: =CONCATENATE(FIXED(COUNTA(U17:U30),0,0)," 店") -> 7 店 | V31: =SUM(V17:V30) -> 9750 | W31: =SUM(W17:W30) -> 0 | X31: =SUM(X20:X30) -> 0
A33: 地区 | D33: 中日新聞 | G33: 枚数 | H33: 朝日新聞 | K33: 枚数 | L33: 毎日新聞 | O33: 枚数 | P33: 読売新聞 | S33: 枚数 | T33: 岐阜新聞 | W33: 枚数 | X33: 備考
A34: 郡上市 | D34: 210360101010 | E34: 郡上八幡NMS | F34: 2000 | P34: 210360405001 | Q34: 郡上八幡 | R34: 50 | T34: 210360504010 | U34: 郡上八幡A | V34: 1300 | X34: *1月曜日折込不可
A35: =SUM(G48,K48,O48,S48,W48) -> 0 | B35: =SUM(F48,J48,N48,R48,V48) -> 9350 | D35: 210360101025 | E35: 郡上大和NAMG | F35: 1200 | X35: 大野郡白川村･
D36: 210360101040 | E36: 美並NAMGS | F36: 850 | X36: 高山市（旧荘川村）
D37: 210360101050 | E37: 相生NAMG | F37: 450 | X37: を含む
D38: 210370101020 | E38: 白鳥NAMGS | F38: 2100
C39: *1 | D39: 210370101030 | E39: 正ヶ洞NAMG | F39: 850
D40: 210370101040 | E40: 和良NAMGY | F40: 550
E48: =CONCATENATE(FIXED(COUNTA(E34:E47),0,0)," 店") -> 7 店 | F48: =SUM(F34:F47) -> 8000 | G48: =SUM(G34:G47) -> 0 | I48: =CONCATENATE(FIXED(COUNTA(I34:I47),0,0)," 店") -> 0 店 | J48: =SUM(J34:J47) -> 0 | K48: =SUM(K34:K47) -> 0 | M48: =CONCATENATE(FIXED(COUNTA(M34:M47),0,0)," 店") -> 0 店 | N48: =SUM(N34:N47) -> 0 | O48: =SUM(O34:O47) -> 0 | Q48: =CONCATENATE(FIXED(COUNTA(Q34:Q47),0,0)," 店") -> 1 店 | R48: =SUM(R34:R47) -> 50 | S48: =SUM(S34:S47) -> 0 | U48: =CONCATENATE(FIXED(COUNTA(U34:U47),0,0)," 店") -> 1 店 | V48: =SUM(V34:V47) -> 1300 | W48: =SUM(W34:W47) -> 0 | X48: =SUM(X34:X47) -> 0
A49: 2025年後期（11月1日以降） | X49: ㈱中日総合サービス

Sheet 可児市・可児郡・多治見市
A1: 折込日 | F1: 広告主 | Q1: サイズ | V1: 取次店
F2: チラシ銘柄 | Q2: 部数 | R2: =A6+A20+A30 -> 0
A4: 地区 | D4: 中日新聞 | G4: 枚数 | H4: 朝日新聞 | K4: 枚数 | L4: 毎日新聞 | O4: 枚数 | P4: 読売新聞 | S4: 枚数 | T4: 岐阜新聞 | W4: 枚数 | X4: 備考
A5: 可児市 | D5: 210440101010 | E5: 広見NMS | F5: 3300 | H5: 210440204010 | I5: 新可児・桜ケ丘G | J5: 1250 | P5: 210440405001 | Q5: 可児中央 | R5: 550 | T5: 210440504050 | U5: 兼山A | V5: 200 | X5: 可児市全域の場合
A6: =SUM(G16,K16,O16,S16,W16) -> 0 | B6: =SUM(F16,J16,N16,R16,V16) -> 19150 | D6: 210440101020 | E6: 今渡NMS | F6: 4000 | H6: 210440204020 | I6: 今渡G | J6: 950 | P6: 210440405002 | Q6: 西可児 | R6: 800 | X6: 多治見市桜ヶ丘1,400枚
D7: 210440101030 | E7: 西可児NMS | F7: 1950 | H7: 210440204030 | I7: 可児西部G | J7: 950 | X7: 多治見市姫650枚
D8: 210440101040 | E8: 春里NMS | F8: 2100 | H8: 210440202020 | I8: 伏見G | J8: 250 | X8: をプラス
C9: *1 | D9: 210440101011 | E9: 下切NMS | F9: 1150
C10: *2 | D10: 210440101050 | E10: 伏見兼山NAMGYS | F10: 1700 | X10: *1多治見市250枚含む
X11: *2八百津町300枚含む
E16: =CONCATENATE(FIXED(COUNTA(E5:E15),0,0)," 店") -> 6 店 | F16: =SUM(F5:F15) -> 14200 | G16: =SUM(G5:G15) -> 0 | I16: =CONCATENATE(FIXED(COUNTA(I5:I15),0,0)," 店") -> 4 店 | J16: =SUM(J5:J15) -> 3400 | K16: =SUM(K5:K15) -> 0 | M16: =CONCATENATE(FIXED(COUNTA(M5:M15),0,0)," 店") -> 0 店 | N16: =SUM(N5:N15) -> 0 | O16: =SUM(O5:O15) -> 0 | Q16: =CONCATENATE(FIXED(COUNTA(Q5:Q15),0,0)," 店") -> 2 店 | R16: =SUM(R5:R15) -> 1350 | S16: =SUM(S5:S15) -> 0 | U16: =CONCATENATE(FIXED(COUNTA(U5:U15),0,0)," 店") -> 1 店 | V16: =SUM(V5:V15) -> 200 | W16: =SUM(W5:W15) -> 0 | X16: =SUM(X5:X15) -> 0
A18: 地区 | D18: 中日新聞 | G18: 枚数 | H18: 朝日新聞 | K18: 枚数 | L18: 毎日新聞 | O18: 枚数 | P18: 読売新聞 | S18: 枚数 | T18: 岐阜新聞 | W18: 枚数 | X18: 備考
A19: 可児郡 | D19: 210460101010 | E19: 御嵩NAMGS | F19: 2250
A20: =SUM(G26,K26,O26,S26,W26) -> 0 | B20: =SUM(F26,J26,N26,R26,V26) -> 2250
E26: =CONCATENATE(FIXED(COUNTA(E19:E25),0,0)," 店") -> 1 店 | F26: =SUM(F19:F25) -> 2250 | G26: =SUM(G19:G25) -> 0 | I26: =CONCATENATE(FIXED(COUNTA(I19:I25),0,0)," 店") -> 0 店 | J26: =SUM(J19:J25) -> 0 | K26: =SUM(K19:K25) -> 0 | M26: =CONCATENATE(FIXED(COUNTA(M19:M25),0,0)," 店") -> 0 店 | N26: =SUM(N19:N25) -> 0 | O26: =SUM(O19:O25) -> 0 | Q26: =CONCATENATE(FIXED(COUNTA(Q19:Q25),0,0)," 店") -> 0 店 | R26: =SUM(R19:R25) -> 0 | S26: =SUM(S19:S25) -> 0 | U26: =CONCATENATE(FIXED(COUNTA(U19:U25),0,0)," 店") -> 0 店 | V26: =SUM(V19:V25) -> 0 | W26: =SUM(W19:W25) -> 0 | X26: =SUM(X19:X25) -> 0
A28: 地区 | D28: 中日新聞 | G28: 枚数 | H28: 朝日新聞 | K28: 枚数 | L28: 毎日新聞 | O28: 枚数 | P28: 読売新聞 | S28: 枚数 | T28: 岐阜新聞 | W28: 枚数 | X28: 備考
A29: 多治見市 | C29: *1 | D29: 210410101010 | E29: 多治見（両藤舎）NAMGS | F29: 7150 | H29: 210410202020 | I29: 多治見南部G | J29: 600 | P29: 210410405002 | Q29: 多治見 | R29: 1050 | X29: 多治見市全域の場合
A30: =SUM(G48,K48,O48,S48,W48) -> 0 | B30: =SUM(F48,J48,N48,R48,V48) -> 25850 | D30: 210410101020 | E30: 多治見東部NM | F30: 1550 | H30: 210410202050 | I30: 多治見ホワイトタウンG | J30: 300 | P30: 210410405003 | Q30: 多治見北 | R30: 400 | X30: 可児市下切250枚
D31: 210410101030 | E31: 多治見西部NMS | F31: 1350 | H31: 210410204020 | I31: 多治見G | J31: 2100 | X31: をプラス
D32: 210410101040 | E32: 多治見池田NMS | F32: 1250
D33: 210410101050 | E33: 小泉NMS | F33: 3000 | X33: *1土岐市300枚
D34: 210410101060 | E34: 北栄NM | F34: 850 | X34: 瀬戸市100枚含む
D35: 210410101080 | E35: 多治見脇之島NM | F35: 1300
C36: *2 | D36: 210410101090 | E36: 多治見姫NMS | F36: 1200 | X36: *2可児市650枚含む
C37: *3 | D37: 210410101070 | E37: 多治見桜ヶ丘NMS | F37: 1850 | X37: *3可児市1,400枚含む
D38: 210410101100 | E38: 笠原NAMGS | F38: 1900
E48: =CONCATENATE(FIXED(COUNTA(E29:E47),0,0)," 店") -> 10 店 | F48: =SUM(F29:F47) -> 21400 | G48: =SUM(G29:G47) -> 0 | I48: =CONCATENATE(FIXED(COUNTA(I29:I47),0,0)," 店") -> 3 店 | J48: =SUM(J29:J47) -> 3000 | K48: =SUM(K29:K47) -> 0 | M48: =CONCATENATE(FIXED(COUNTA(M29:M47),0,0)," 店") -> 0 店 | N48: =SUM(N29:N47) -> 0 | O48: =SUM(O29:O47) -> 0 | Q48: =CONCATENATE(FIXED(COUNTA(Q29:Q47),0,0)," 店") -> 2 店 | R48: =SUM(R29:R47) -> 1450 | S48: =SUM(S29:S47) -> 0 | U48: =CONCATENATE(FIXED(COUNTA(U29:U47),0,0)," 店") -> 0 店 | V48: =SUM(V29:V47) -> 0 | W48: =SUM(W29:W47) -> 0 | X48: =SUM(X29:X47) -> 0
A49: 2025年後期（11月1日以降） | X49: ㈱中日総合サービス

Sheet 土岐市・瑞浪市・恵那市
A1: 折込日 | F1: 広告主 | Q1: サイズ | V1: 取次店
F2: チラシ銘柄 | Q2: 部数 | R2: =A6+A18+A31 -> 0
A4: 地区 | D4: 中日新聞 | G4: 枚数 | H4: 朝日新聞 | K4: 枚数 | L4: 毎日新聞 | O4: 枚数 | P4: 読売新聞 | S4: 枚数 | T4: 岐阜新聞 | W4: 枚数 | X4: 備考
A5: 土岐市 | D5: 210420101010 | E5: 土岐津NMS | F5: 4750 | H5: 210420204010 | I5: 土岐市G | J5: 900 | P5: 210420405001 | Q5: 土岐 | R5: 650 | X5: 土岐市全域の場合
A6: =SUM(G14,K14,O14,S14,W14) -> 0 | B6: =SUM(F14,J14,N14,R14,V14) -> 12250 | D6: 210420101020 | E6: 土岐口NMS | F6: 1200 | H6: 210420204030 | I6: 妻木G | J6: 200 | X6: 多治見市多治見（両藤舎）
D7: 210420101070 | E7: 妻木NMS | F7: 1100 | H7: 210420204020 | I7: 下石MG | J7: 350 | X7: 300枚をプラス
D8: 210420101030 | E8: 下石NS | F8: 1150 | H8: 210420204040 | I8: 駄知G | J8: 300
D9: 210420101040 | E9: 駄知NM | F9: 1650
E14: =CONCATENATE(FIXED(COUNTA(E5:E13),0,0)," 店") -> 5 店 | F14: =SUM(F5:F13) -> 9850 | G14: =SUM(G5:G13) -> 0 | I14: =CONCATENATE(FIXED(COUNTA(I5:I13),0,0)," 店") -> 4 店 | J14: =SUM(J5:J13) -> 1750 | K14: =SUM(K5:K13) -> 0 | M14: =CONCATENATE(FIXED(COUNTA(M5:M13),0,0)," 店") -> 0 店 | N14: =SUM(N5:N13) -> 0 | O14: =SUM(O5:O13) -> 0 | Q14: =CONCATENATE(FIXED(COUNTA(Q5:Q13),0,0)," 店") -> 1 店 | R14: =SUM(R5:R13) -> 650 | S14: =SUM(S5:S13) -> 0 | U14: =CONCATENATE(FIXED(COUNTA(U5:U13),0,0)," 店") -> 0 店 | V14: =SUM(V5:V13) -> 0 | W14: =SUM(W5:W13) -> 0 | X14: =SUM(X5:X13) -> 0
A16: 地区 | D16: 中日新聞 | G16: 枚数 | H16: 朝日新聞 | K16: 枚数 | L16: 毎日新聞 | O16: 枚数 | P16: 読売新聞 | S16: 枚数 | T16: 岐阜新聞 | W16: 枚数 | X16: 備考
A17: 瑞浪市 | D17: 210430101010 | E17: 瑞浪NAMG | F17: 3200 | P17: 210430405001 | Q17: 瑞浪 | R17: 350
A18: =SUM(G27,K27,O27,S27,W27) -> 0 | B18: =SUM(F27,J27,N27,R27,V27) -> 7900 | D18: 210430101020 | E18: 瑞浪西部NAMGS | F18: 2600 | P18: 210430405002 | Q18: 陶 | R18: 100
D19: 210430101040 | E19: 釜戸NAMGS | F19: 800
D20: 210430101030 | E20: 陶NAMGS | F20: 850
E27: =CONCATENATE(FIXED(COUNTA(E17:E26),0,0)," 店") -> 4 店 | F27: =SUM(F17:F26) -> 7450 | G27: =SUM(G17:G26) -> 0 | I27: =CONCATENATE(FIXED(COUNTA(I17:I26),0,0)," 店") -> 0 店 | J27: =SUM(J17:J26) -> 0 | K27: =SUM(K17:K26) -> 0 | M27: =CONCATENATE(FIXED(COUNTA(M17:M26),0,0)," 店") -> 0 店 | N27: =SUM(N17:N26) -> 0 | O27: =SUM(O17:O26) -> 0 | Q27: =CONCATENATE(FIXED(COUNTA(Q17:Q26),0,0)," 店") -> 2 店 | R27: =SUM(R17:R26) -> 450 | S27: =SUM(S17:S26) -> 0 | U27: =CONCATENATE(FIXED(COUNTA(U17:U26),0,0)," 店") -> 0 店 | V27: =SUM(V17:V26) -> 0 | W27: =SUM(W17:W26) -> 0 | X27: =SUM(X17:X26) -> 0
A29: 地区 | D29: 中日新聞 | G29: 枚数 | H29: 朝日新聞 | K29: 枚数 | L29: 毎日新聞 | O29: 枚数 | P29: 読売新聞 | S29: 枚数 | T29: 岐阜新聞 | W29: 枚数 | X29: 備考
A30: 恵那市 | D30: 210450101010 | E30: 恵那東部NMS | F30: 2950 | H30: 210450204010 | I30: 恵那G | J30: 1250 | P30: 210450405001 | Q30: 恵那 | R30: 500 | T30: 210450504020 | U30: 東野 | V30: 200
A31: =SUM(G48,K48,O48,S48,W48) -> 0 | B31: =SUM(F48,J48,N48,R48,V48) -> 12300 | D31: 210450101020 | E31: 恵那（佐伯）NMS | F31: 1800 | T31: 210450504050 | U31: 中野方A | V31: 300
D32: 210450101030 | E32: 武並NAMGS | F32: 700
D33: 210450101040 | E33: 岩村NAMGS | F33: 1100
D34: 210450101050 | E34: 恵那上矢作NAMG | F34: 500
D35: 210450101060 | E35: 遠山NAMG | F35: 500
D36: 210450101070 | E36: 鶴岡NAMG | F36: 550
D37: 210450101080 | E37: 明智NAMYGS | F37: 1950
E48: =CONCATENATE(FIXED(COUNTA(E30:E47),0,0)," 店") -> 8 店 | F48: =SUM(F30:F47) -> 10050 | G48: =SUM(G30:G47) -> 0 | I48: =CONCATENATE(FIXED(COUNTA(I30:I47),0,0)," 店") -> 1 店 | J48: =SUM(J30:J47) -> 1250 | K48: =SUM(K30:K47) -> 0 | M48: =CONCATENATE(FIXED(COUNTA(M30:M47),0,0)," 店") -> 0 店 | N48: =SUM(N30:N47) -> 0 | O48: =SUM(O30:O47) -> 0 | Q48: =CONCATENATE(FIXED(COUNTA(Q30:Q47),0,0)," 店") -> 1 店 | R48: =SUM(R30:R47) -> 500 | S48: =SUM(S30:S47) -> 0 | U48: =CONCATENATE(FIXED(COUNTA(U30:U47),0,0)," 店") -> 2 店 | V48: =SUM(V30:V47) -> 500 | W48: =SUM(W30:W47) -> 0 | X48: =SUM(X30:X47) -> 0
A49: 2025年後期（11月1日以降） | X49: ㈱中日総合サービス

Sheet 中津川市・下呂市
A1: 折込日 | F1: 広告主 | Q1: サイズ | V1: 取次店
F2: チラシ銘柄 | Q2: 部数 | R2: =A6+A30 -> 0
A4: 地区 | D4: 中日新聞 | G4: 枚数 | H4: 朝日新聞 | K4: 枚数 | L4: 毎日新聞 | O4: 枚数 | P4: 読売新聞 | S4: 枚数 | T4: 岐阜新聞 | W4: 枚数 | X4: 備考
A5: 中津川市 | D5: 210490101010 | E5: 中津川東NAMGS | F5: 2350 | P5: 210490405001 | Q5: 中津川 | R5: 1200
A6: =SUM(G26,K26,O26,S26,W26) -> 0 | B6: =SUM(F26,J26,N26,R26,V26) -> 17800 | D6: 210490101020 | E6: 中津川西NAMGS | F6: 1550
D7: 210490101040 | E7: 中津川北NAMGS | F7: 1450
D8: 210490101070 | E8: 坂本NAMGS | F8: 2450
C9: *1 | D9: 210490101050 | E9: 落合NAMGS | F9: 1150 | X9: 信濃毎日新聞の扱いあり
D10: 210490101080 | E10: 苗木NAMGS | F10: 1300 | X10: *１…50枚含む
D11: 210490101060 | E11: 阿木NAMG | F11: 600 | X11: *2…50枚含む
D12: 210490101090 | E12: 蛭川NAMＧ | F12: 700
C13: *2 | D13: 210490101100 | E13: 美濃坂下NAMGYS | F13: 1750
D14: 210490101110 | E14: 福岡NAMG | F14: 850
D15: 210490101120 | E15: 下野NAMG | F15: 250
D16: 210490101130 | E16: 田瀬NAMG | F16: 250
D17: 210490101140 | E17: 付知NAMG | F17: 1300
D18: 210490101150 | E18: 加子母NAMGS | F18: 650
E26: =CONCATENATE(FIXED(COUNTA(E5:E25),0,0)," 店") -> 14 店 | F26: =SUM(F5:F25) -> 16600 | G26: =SUM(G5:G25) -> 0 | I26: =CONCATENATE(FIXED(COUNTA(I5:I25),0,0)," 店") -> 0 店 | J26: =SUM(J5:J25) -> 0 | K26: =SUM(K5:K25) -> 0 | M26: =CONCATENATE(FIXED(COUNTA(M5:M25),0,0)," 店") -> 0 店 | N26: =SUM(N5:N25) -> 0 | O26: =SUM(O5:O25) -> 0 | Q26: =CONCATENATE(FIXED(COUNTA(Q5:Q25),0,0)," 店") -> 1 店 | R26: =SUM(R5:R25) -> 1200 | S26: =SUM(S5:S25) -> 0 | U26: =CONCATENATE(FIXED(COUNTA(U5:U25),0,0)," 店") -> 0 店 | V26: =SUM(V5:V25) -> 0 | W26: =SUM(W5:W25) -> 0 | X26: =SUM(X5:X25) -> 0
A28: 地区 | D28: 中日新聞 | G28: 枚数 | H28: 朝日新聞 | K28: 枚数 | L28: 毎日新聞 | O28: 枚数 | P28: 読売新聞 | S28: 枚数 | T28: 岐阜新聞 | W28: 枚数 | X28: 備考
A29: 下呂市 | D29: 210530101010 | E29: 飛騨金山NAMGY | F29: 1400 | P29: 210530405002 | Q29: 下呂 | R29: 500 | T29: 210530504010
A30: =SUM(G48,K48,O48,S48,W48) -> 0 | B30: =SUM(F48,J48,N48,R48,V48) -> 9200 | D30: 210530101020 | E30: 東村NAMGY | F30: 400 | P30: 210530405003 | Q30: 飛騨萩原 | R30: 100
D31: 210530101030 | E31: 焼石NAMGS | F31: 550
D32: 210530101040 | E32: 下呂NAMGS | F32: 1600
A33: =SUM(F41,J41,N41,R41,V41) -> 0 | B33: =SUM(G41,K41,O41,S41,W41) -> 0 | D33: 210530101050 | E33: 飛騨竹原NAMGS | F33: 850
D34: 210530101060 | E34: 飛騨萩原NAMGS | F34: 1900
D35: 210530101070 | E35: 飛騨川西NAMG | F35: 950
D36: 210530101080 | E36: 飛騨小坂NAMGY | F36: 950
E48: =CONCATENATE(FIXED(COUNTA(E29:E47),0,0)," 店") -> 8 店 | F48: =SUM(F29:F47) -> 8600 | G48: =SUM(G29:G47) -> 0 | I48: =CONCATENATE(FIXED(COUNTA(I29:I47),0,0)," 店") -> 0 店 | J48: =SUM(J29:J47) -> 0 | K48: =SUM(K29:K47) -> 0 | M48: =CONCATENATE(FIXED(COUNTA(M29:M47),0,0)," 店") -> 0 店 | N48: =SUM(N29:N47) -> 0 | O48: =SUM(O29:O47) -> 0 | Q48: =CONCATENATE(FIXED(COUNTA(Q29:Q47),0,0)," 店") -> 2 店 | R48: =SUM(R29:R47) -> 600 | S48: =SUM(S29:S47) -> 0 | U48: =CONCATENATE(FIXED(COUNTA(U29:U47),0,0)," 店") -> 0 店 | V48: =SUM(V29:V47) -> 0 | W48: =SUM(W29:W47) -> 0 | X48: =SUM(X29:X47) -> 0
A49: 2025年後期（11月1日以降） | X49: ㈱中日総合サービス

Sheet 高山市・飛騨市
A1: 折込日 | F1: 広告主 | Q1: サイズ | V1: 取次店
F2: チラシ銘柄 | Q2: 部数 | R2: =A6+A30 -> 0
A4: 地区 | D4: 中日新聞 | G4: 枚数 | H4: 朝日新聞 | K4: 枚数 | L4: 毎日新聞 | O4: 枚数 | P4: 読売新聞 | S4: 枚数 | T4: 岐阜新聞 | W4: 枚数 | X4: 備考
A5: 高山市 | D5: 210510101010 | E5: 高山NAM | F5: 8300 | H5: 210510202010 | I5: 高山南部 | J5: 800 | P5: 210510405002 | Q5: 高山 | R5: 900 | T5: 210510504010 | U5: 高山S | V5: 1850 | X5: ☆月曜日折込不可
A6: =SUM(G26,K26,O26,S26,W26) -> 0 | B6: =SUM(F26,J26,N26,R26,V26) -> 20900 | D6: 210510101100 | E6: 高山西部NAM | F6: 1400
D7: 210510101110 | E7: 高山北部NAM | F7: 1450
D8: 210510101020 | E8: 高山朝日町NAMG | F8: 500
D9: 210510101030 | E9: 清見NAMG | F9: 650
D10: 210510101040 | E10: 久々野NAMG | F10: 800
D11: 210510101050 | E11: ひだ一之宮NAMG | F11: 600
D12: 210510101060 | E12: 丹生川NAMGS | F12: 1050
C13: ☆ | D13: 210510101070 | E13: 飛騨国府NAMGS | F13: 1650
D14: 210510101080 | E14: 上宝NAMG | F14: 500
D15: 210510101090 | E15: 奥飛騨NAMGYS | F15: 450
E26: =CONCATENATE(FIXED(COUNTA(E5:E25),0,0)," 店") -> 11 店 | F26: =SUM(F5:F25) -> 17350 | G26: =SUM(G5:G25) -> 0 | I26: =CONCATENATE(FIXED(COUNTA(I5:I25),0,0)," 店") -> 1 店 | J26: =SUM(J5:J25) -> 800 | K26: =SUM(K5:K25) -> 0 | M26: =CONCATENATE(FIXED(COUNTA(M5:M25),0,0)," 店") -> 0 店 | N26: =SUM(N5:N25) -> 0 | O26: =SUM(O5:O25) -> 0 | Q26: =CONCATENATE(FIXED(COUNTA(Q5:Q25),0,0)," 店") -> 1 店 | R26: =SUM(R5:R25) -> 900 | S26: =SUM(S5:S25) -> 0 | U26: =CONCATENATE(FIXED(COUNTA(U5:U25),0,0)," 店") -> 1 店 | V26: =SUM(V5:V25) -> 1850 | W26: =SUM(W5:W25) -> 0 | X26: =SUM(X5:X25) -> 0
A28: 地区 | D28: 中日新聞 | G28: 枚数 | H28: 朝日新聞 | K28: 枚数 | L28: 毎日新聞 | O28: 枚数 | P28: 読売新聞 | S28: 枚数 | T28: 岐阜新聞 | W28: 枚数 | X28: 備考
A29: 飛騨市 | C29: *1 | D29: 210520101010 | E29: 神岡NYS | F29: 1550 | P29: 210520405001 | Q29: 古川 | R29: 100 | T29: 210520504020 | U29: 神岡AM | V29: 800 | X29: 北日本新聞の扱いあり
A30: =SUM(G48,K48,O48,S48,W48) -> 0 | B30: =SUM(F48,J48,N48,R48,V48) -> 6500 | C30: *2 | D30: 210520101020 | E30: 茂住NAMG | F30: 100 | P30: 210520405003 | Q30: 角川 | R30: 50 | X30: *１…50枚含む
D31: 210520101060 | E31: 飛騨古川NAMGS | F31: 3200 | X31: *2…50枚含む
D32: 210520101070 | E32: 角川NAMG | F32: 350
A33: =SUM(F41,J41,N41,R41,V41) -> 0 | B33: =SUM(G41,K41,O41,S41,W41) -> 0 | D33: 210520101050 | E33: 坂上NAMG | F33: 150
D34: 210520101030 | E34: 打保G | F34: 100
D35: 210520101040 | E35: 飛騨杉原G | F35: 100
E48: =CONCATENATE(FIXED(COUNTA(E29:E47),0,0)," 店") -> 7 店 | F48: =SUM(F29:F47) -> 5550 | G48: =SUM(G29:G47) -> 0 | I48: =CONCATENATE(FIXED(COUNTA(I29:I47),0,0)," 店") -> 0 店 | J48: =SUM(J29:J47) -> 0 | K48: =SUM(K29:K47) -> 0 | M48: =CONCATENATE(FIXED(COUNTA(M29:M47),0,0)," 店") -> 0 店 | N48: =SUM(N29:N47) -> 0 | O48: =SUM(O29:O47) -> 0 | Q48: =CONCATENATE(FIXED(COUNTA(Q29:Q47),0,0)," 店") -> 2 店 | R48: =SUM(R29:R47) -> 150 | S48: =SUM(S29:S47) -> 0 | U48: =CONCATENATE(FIXED(COUNTA(U29:U47),0,0)," 店") -> 1 店 | V48: =SUM(V29:V47) -> 800 | W48: =SUM(W29:W47) -> 0 | X48: =SUM(X29:X47) -> 0
A49: 2025年後期（11月1日以降） | X49: ㈱中日総合サービス
